Body,Body Name,Posted Fiscal Date,Amount,Transaction Number,Supplier Name,Directorate,Service,Activity,Cost Centre Name,Subjective Name
http://statistics.data.gov.uk/doc/local-authority-district/00AR,London Borough of Havering,19/03/2015,9404.38,MAR15L1,Suttons Primary School,"Children, Adults & Housing",Learning & Achievement,Schools Provision and Commissioning,Nursery Education 2Yr Olds,GENERAL CONTINGENCY
http://statistics.data.gov.uk/doc/local-authority-district/00AR,London Borough of Havering,24/03/2015,18141.07,MAR15L3,Wandsworth Borough Council,"Children, Adults & Housing",Learning & Achievement,SEN,Special Support,PRIVATE CONTRACTORS PAYMENT - OTHER
http://statistics.data.gov.uk/doc/local-authority-district/00AR,London Borough of Havering,17/03/2015,1948.18,MAR15L4,Canon (UK) Ltd,oneSource Shared,oS ICT Services,oS Commercial Services,Communications Business Unit,PHOTOCOPYING
http://statistics.data.gov.uk/doc/local-authority-district/00AR,London Borough of Havering,17/03/2015,1948.18,MAR15L5,Canon (UK) Ltd,oneSource Shared,oS ICT Services,oS Commercial Services,Communications Business Unit,PHOTOCOPYING
http://statistics.data.gov.uk/doc/local-authority-district/00AR,London Borough of Havering,17/03/2015,18199.48,MAR15L6,Canon (UK) Ltd,oneSource Shared,oS ICT Services,oS Commercial Services,Communications Business Unit,PHOTOCOPYING
http://statistics.data.gov.uk/doc/local-authority-district/00AR,London Borough of Havering,18/03/2015,15000.00,MAR15L17,Elm Park Primary,"Children, Adults & Housing",Learning & Achievement,HIAS Development Leadership Quality and Assurance,Early Years Quality and Assurance Team - CORE,STAFF DEVELOPMENT AND TRAINING
http://statistics.data.gov.uk/doc/local-authority-district/00AR,London Borough of Havering,23/03/2015,147954.00,MAR15L18,Elm Park Primary,"Children, Adults & Housing",Learning & Achievement,Primary,Elm Park Primary,SCHOOL BANK ACCOUNTS
http://statistics.data.gov.uk/doc/local-authority-district/00AR,London Borough of Havering,18/03/2015,15000.00,MAR15L22,Squirrels Heath Infant School,"Children, Adults & Housing",Learning & Achievement,HIAS Development Leadership Quality and Assurance,Early Years Quality and Assurance Team - CORE,STAFF DEVELOPMENT AND TRAINING
http://statistics.data.gov.uk/doc/local-authority-district/00AR,London Borough of Havering,13/03/2015,1000.00,MAR15L23,Squirrels Heath Infant School,"Children, Adults & Housing",Learning & Achievement,HIAS Development Leadership Quality and Assurance,Early Years Quality and Assurance Team - CORE,STAFF DEVELOPMENT AND TRAINING
http://statistics.data.gov.uk/doc/local-authority-district/00AR,London Borough of Havering,30/03/2015,579.96,MAR15L44,Copyright Licensing Agency Ltd,"Children, Adults & Housing",Learning & Achievement,Adult Education,HCAE - Central Office,PRIVATE CONTRACTORS PAYMENT - OTHER
http://statistics.data.gov.uk/doc/local-authority-district/00AR,London Borough of Havering,02/03/2015,3491.00,MAR15L45,Techniforce Ltd,oneSource Shared,oS Asset Management Services,oS Technical Services,Architectural Service,ICT LICENCES
http://statistics.data.gov.uk/doc/local-authority-district/00AR,London Borough of Havering,10/03/2015,1750.00,MAR15L46,The Rosewood Medical Centre,Public Health,Public Health,PH - Sexual Health,SH - STI Testing and Treatment,PRIVATE CONTRACTORS PAYMENT - OTHER
http://statistics.data.gov.uk/doc/local-authority-district/00AR,London Borough of Havering,16/03/2015,2000.00,MAR15L47,Brady Primary School,"Children, Adults & Housing",Learning & Achievement,HIAS Development Leadership Quality and Assurance,Early Years Quality and Assurance Team - CORE,STAFF DEVELOPMENT AND TRAINING
http://statistics.data.gov.uk/doc/local-authority-district/00AR,London Borough of Havering,12/03/2015,500.00,MAR15L70,Hilldene Primary School,oneSource Non-Shared LBH,Asset Management,Education Asset Management,Maintenance Non-Delegated,"MAINTENANCE - EQUIPMENT, FURNITURE AND MATERIALS"
http://statistics.data.gov.uk/doc/local-authority-district/00AR,London Borough of Havering,24/03/2015,2000.00,MAR15L82,Scotts JMI School,"Children, Adults & Housing",Learning & Achievement,HIAS Development Leadership Quality and Assurance,Early Years Quality and Assurance Team - CORE,STAFF DEVELOPMENT AND TRAINING
http://statistics.data.gov.uk/doc/local-authority-district/00AR,London Borough of Havering,19/03/2015,584.43,MAR15L87,Annodata Ltd,oneSource Shared,oS Asset Management Services,oS Health & Safety,Corp.Support Svs Section,INTERNAL RECHARGES
http://statistics.data.gov.uk/doc/local-authority-district/00AR,London Borough of Havering,25/03/2015,6003.01,MAR15L89,Royal Liberty School,oneSource Non-Shared LBH,Internal Shared Services,Shared Services,Payroll - Childcare Vouchers,FEES & CHARGES INCOME - OTHER
http://statistics.data.gov.uk/doc/local-authority-district/00AR,London Borough of Havering,19/03/2015,5975.00,MAR15L100,St Edward's Church of England Primary School,"Children, Adults & Housing",Learning & Achievement,Schools Provision and Commissioning,Nursery Education 2Yr Olds,GENERAL CONTINGENCY
http://statistics.data.gov.uk/doc/local-authority-district/00AR,London Borough of Havering,18/03/2015,15000.00,MAR15L109,Wykeham Primary School,"Children, Adults & Housing",Learning & Achievement,HIAS Development Leadership Quality and Assurance,Early Years Quality and Assurance Team - CORE,STAFF DEVELOPMENT AND TRAINING
http://statistics.data.gov.uk/doc/local-authority-district/00AR,London Borough of Havering,17/03/2015,13000.00,MAR15L117,Wykeham Primary School,"Children, Adults & Housing",Learning & Achievement,HIAS Development Leadership Quality and Assurance,Quality and Assurance School Improvement,PRIVATE CONTRACTORS PAYMENT - OTHER
http://statistics.data.gov.uk/doc/local-authority-district/00AR,London Borough of Havering,10/03/2015,2005.00,MAR15L122,Saimol Trading Company,Community and Resources,Economic Development,Economic Regeneration,Town Centre Management,PRIVATE CONTRACTORS PAYMENT - OTHER
http://statistics.data.gov.uk/doc/local-authority-district/00AR,London Borough of Havering,27/03/2015,968.00,MAR15L131,London Fire and Emergency Planning Authority,Community and Resources,Regulatory Services,Environmental Health,Envir Health Housing & Pub Health,OTHER SALES - VATABLE
http://statistics.data.gov.uk/doc/local-authority-district/00AR,London Borough of Havering,24/03/2015,2000.00,MAR15L132,Neopost Ltd,Community and Resources,Regulatory Services,Crematorium & Cems,Bereavement Customer Services,POSTAGE AND COURIER SERVICES
http://statistics.data.gov.uk/doc/local-authority-district/00AR,London Borough of Havering,03/03/2015,10.70,MAR15L133,Royal Mail Group Plc,oneSource Shared,oS Legal & Governance,oS Democratic & Electoral Services,Electoral Registration,INTERNAL RECHARGES
http://statistics.data.gov.uk/doc/local-authority-district/00AR,London Borough of Havering,03/03/2015,25.61,MAR15L134,Royal Mail Group Plc,oneSource Shared,oS Exchequer & Transactional Services,oS NNDR,Revenues - NNDR,INTERNAL RECHARGES
http://statistics.data.gov.uk/doc/local-authority-district/00AR,London Borough of Havering,03/03/2015,86.14,MAR15L135,Royal Mail Group Plc,oneSource Shared,oS Exchequer & Transactional Services,oS Debt Management & Recovery,Revenues - Enforcement,INTERNAL RECHARGES
http://statistics.data.gov.uk/doc/local-authority-district/00AR,London Borough of Havering,03/03/2015,95.59,MAR15L136,Royal Mail Group Plc,oneSource Shared,oS Exchequer & Transactional Services,oS Council Tax,Revenues - Council Tax,INTERNAL RECHARGES
http://statistics.data.gov.uk/doc/local-authority-district/00AR,London Borough of Havering,03/03/2015,115.36,MAR15L137,Royal Mail Group Plc,oneSource Shared,oS Exchequer & Transactional Services,oS Transactional Services,Transactional HR,INTERNAL RECHARGES
http://statistics.data.gov.uk/doc/local-authority-district/00AR,London Borough of Havering,03/03/2015,239.74,MAR15L138,Royal Mail Group Plc,oneSource Shared,oS Exchequer & Transactional Services,oS Transactional Services,Transactional Payroll,INTERNAL RECHARGES
http://statistics.data.gov.uk/doc/local-authority-district/00AR,London Borough of Havering,03/03/2015,457.65,MAR15L139,Royal Mail Group Plc,oneSource Shared,oS Exchequer & Transactional Services,oS Benefits,Benefits Processing,INTERNAL RECHARGES
http://statistics.data.gov.uk/doc/local-authority-district/00AR,London Borough of Havering,03/03/2015,1309.87,MAR15L140,Royal Mail Group Plc,oneSource Shared,oS Asset Management Services,oS Health & Safety,Corp.Support Svs Section,INTERNAL RECHARGES
http://statistics.data.gov.uk/doc/local-authority-district/00AR,London Borough of Havering,25/03/2015,23.07,MAR15L141,Royal Mail Group Plc,oneSource Shared,oS Exchequer & Transactional Services,oS Transactional Services,Transactional HR,INTERNAL RECHARGES
http://statistics.data.gov.uk/doc/local-authority-district/00AR,London Borough of Havering,25/03/2015,53.73,MAR15L142,Royal Mail Group Plc,oneSource Shared,oS Exchequer & Transactional Services,oS Debt Management & Recovery,Revenues - Enforcement,INTERNAL RECHARGES
http://statistics.data.gov.uk/doc/local-authority-district/00AR,London Borough of Havering,25/03/2015,111.76,MAR15L143,Royal Mail Group Plc,oneSource Shared,oS Exchequer & Transactional Services,oS Council Tax,Revenues - Council Tax,INTERNAL RECHARGES
http://statistics.data.gov.uk/doc/local-authority-district/00AR,London Borough of Havering,25/03/2015,132.41,MAR15L144,Royal Mail Group Plc,"Children, Adults & Housing",Housing (HRA),Housing Services,Home Ownership Team,INTERNAL RECHARGES
http://statistics.data.gov.uk/doc/local-authority-district/00AR,London Borough of Havering,25/03/2015,162.92,MAR15L145,Royal Mail Group Plc,oneSource Shared,oS Legal & Governance,oS Democratic & Electoral Services,Electoral Registration,INTERNAL RECHARGES
http://statistics.data.gov.uk/doc/local-authority-district/00AR,London Borough of Havering,25/03/2015,629.39,MAR15L146,Royal Mail Group Plc,oneSource Shared,oS Exchequer & Transactional Services,oS Benefits,Benefits Processing,INTERNAL RECHARGES
http://statistics.data.gov.uk/doc/local-authority-district/00AR,London Borough of Havering,25/03/2015,1364.97,MAR15L147,Royal Mail Group Plc,oneSource Shared,oS Exchequer & Transactional Services,oS NNDR,Revenues - NNDR,INTERNAL RECHARGES
http://statistics.data.gov.uk/doc/local-authority-district/00AR,London Borough of Havering,19/03/2015,0.72,MAR15L148,Royal Mail Group Plc,"Children, Adults & Housing",Housing (HRA),Housing Services,Home Ownership Team,INTERNAL RECHARGES
http://statistics.data.gov.uk/doc/local-authority-district/00AR,London Borough of Havering,19/03/2015,8.69,MAR15L149,Royal Mail Group Plc,oneSource Shared,oS Exchequer & Transactional Services,oS NNDR,Revenues - NNDR,INTERNAL RECHARGES
http://statistics.data.gov.uk/doc/local-authority-district/00AR,London Borough of Havering,19/03/2015,15.20,MAR15L150,Royal Mail Group Plc,oneSource Shared,oS Exchequer & Transactional Services,oS Transactional Services,Transactional HR,INTERNAL RECHARGES
http://statistics.data.gov.uk/doc/local-authority-district/00AR,London Borough of Havering,19/03/2015,42.21,MAR15L151,Royal Mail Group Plc,oneSource Shared,oS Exchequer & Transactional Services,oS Transactional Services,Transactional Payroll,INTERNAL RECHARGES
http://statistics.data.gov.uk/doc/local-authority-district/00AR,London Borough of Havering,19/03/2015,56.85,MAR15L152,Royal Mail Group Plc,oneSource Shared,oS Exchequer & Transactional Services,oS Council Tax,Revenues - Council Tax,INTERNAL RECHARGES
http://statistics.data.gov.uk/doc/local-authority-district/00AR,London Borough of Havering,19/03/2015,82.86,MAR15L153,Royal Mail Group Plc,oneSource Shared,oS Legal & Governance,oS Democratic & Electoral Services,Electoral Registration,INTERNAL RECHARGES
http://statistics.data.gov.uk/doc/local-authority-district/00AR,London Borough of Havering,19/03/2015,97.08,MAR15L154,Royal Mail Group Plc,"Children, Adults & Housing",Learning & Achievement,Borough Catering,Catering - Meals on Wheels,INTERNAL RECHARGES
http://statistics.data.gov.uk/doc/local-authority-district/00AR,London Borough of Havering,19/03/2015,427.28,MAR15L155,Royal Mail Group Plc,oneSource Shared,oS Exchequer & Transactional Services,oS Benefits,Benefits Processing,INTERNAL RECHARGES
http://statistics.data.gov.uk/doc/local-authority-district/00AR,London Borough of Havering,19/03/2015,525.82,MAR15L156,Royal Mail Group Plc,oneSource Shared,oS Exchequer & Transactional Services,oS Debt Management & Recovery,Revenues - Enforcement,INTERNAL RECHARGES
http://statistics.data.gov.uk/doc/local-authority-district/00AR,London Borough of Havering,20/03/2015,1200.00,MAR15L171,Fostering Network,"Children, Adults & Housing",Childrens Services,Prevention & Intervention,Social Work Improvement Team,STAFF DEVELOPMENT AND TRAINING
http://statistics.data.gov.uk/doc/local-authority-district/00AR,London Borough of Havering,20/03/2015,95688.17,MAR15L172,Cablecom Investment Ltd,"Children, Adults & Housing",Housing (HRA),Maintenance,Cablecom,PRIVATE CONTRACTORS PAYMENT - OTHER
http://statistics.data.gov.uk/doc/local-authority-district/00AR,London Borough of Havering,27/03/2015,1047.71,MAR15L173,Cablecom Investment Ltd,"Children, Adults & Housing",Housing (HRA),Maintenance,Cablecom,CYCLICAL/PLANNED MAINTENANCE - BUILDING
http://statistics.data.gov.uk/doc/local-authority-district/00AR,London Borough of Havering,26/03/2015,1435.70,MAR15L174,Zurich Management Services,Community and Resources,Corporate Financial Matters,Ins Trading Account,Ins Trading Account,INSURANCE (EXCL PREMISES AND TRANSPORT)
http://statistics.data.gov.uk/doc/local-authority-district/00AR,London Borough of Havering,04/03/2015,4465.00,MAR15L182,"Barking, Havering and Redbridge University Hospitals NHS Trust",Community and Resources,Regulatory Services,Environmental Health,Mortuary Charges,PAYMENT TO OTHER LOCAL AUTHORITIES
http://statistics.data.gov.uk/doc/local-authority-district/00AR,London Borough of Havering,10/03/2015,35780.56,MAR15L183,"Barking, Havering and Redbridge University Hospitals NHS Trust",Public Health,Public Health,PH - Sexual Health,SH - Contraception,PRIVATE CONTRACTORS PAYMENT - OTHER
http://statistics.data.gov.uk/doc/local-authority-district/00AR,London Borough of Havering,10/03/2015,88836.00,MAR15L184,"Barking, Havering and Redbridge University Hospitals NHS Trust",Public Health,Public Health,PH - Sexual Health,SH - STI Testing and Treatment,PRIVATE CONTRACTORS PAYMENT - OTHER
http://statistics.data.gov.uk/doc/local-authority-district/00AR,London Borough of Havering,12/03/2015,1800.00,MAR15L185,"Barking, Havering and Redbridge University Hospitals NHS Trust","Children, Adults & Housing",Childrens Services,Safeguarding Unit,Child Death Review Process,PRIVATE CONTRACTORS PAYMENT - OTHER
http://statistics.data.gov.uk/doc/local-authority-district/00AR,London Borough of Havering,27/03/2015,34510.24,MAR15L186,"Barking, Havering and Redbridge University Hospitals NHS Trust",Public Health,Public Health,PH - Sexual Health,SH - Contraception,PRIVATE CONTRACTORS PAYMENT - OTHER
http://statistics.data.gov.uk/doc/local-authority-district/00AR,London Borough of Havering,27/03/2015,80208.00,MAR15L187,"Barking, Havering and Redbridge University Hospitals NHS Trust",Public Health,Public Health,PH - Sexual Health,SH - STI Testing and Treatment,PRIVATE CONTRACTORS PAYMENT - OTHER
http://statistics.data.gov.uk/doc/local-authority-district/00AR,London Borough of Havering,19/03/2015,11985.00,MAR15L188,"Barking, Havering and Redbridge University Hospitals NHS Trust",Community and Resources,Regulatory Services,Environmental Health,Mortuary Charges,PAYMENT TO OTHER LOCAL AUTHORITIES
http://statistics.data.gov.uk/doc/local-authority-district/00AR,London Borough of Havering,23/03/2015,5377.00,MAR15L189,Experian Ltd,"Children, Adults & Housing",Housing (HRA),Hsg Needs & Strategy,Needs and Service Development,PRIVATE CONTRACTORS PAYMENT - OTHER
http://statistics.data.gov.uk/doc/local-authority-district/00AR,London Borough of Havering,23/03/2015,6733.00,MAR15L190,Experian Ltd,Community and Resources,Economic Development,Economic Regeneration,Regen Implementation,PROFESSIONAL SERVICES - GENERAL
http://statistics.data.gov.uk/doc/local-authority-district/00AR,London Borough of Havering,10/03/2015,3500.00,MAR15L191,Experian Ltd,Community and Resources,Economic Development,Economic Regeneration,Town Centre Management,PRIVATE CONTRACTORS PAYMENT - OTHER
http://statistics.data.gov.uk/doc/local-authority-district/00AR,London Borough of Havering,13/03/2015,39268.00,MAR15L197,London Borough of Waltham Forest,Community and Resources,Corporate Financial Matters,Judicial Matters,Coroners,PAYMENT TO OTHER LOCAL AUTHORITIES
http://statistics.data.gov.uk/doc/local-authority-district/00AR,London Borough of Havering,23/03/2015,6000.00,MAR15L198,Squirrels Heath Junior School,"Children, Adults & Housing",Learning & Achievement,Traded Services,HSIS Traded Services,PRIVATE CONTRACTORS PAYMENT - OTHER
http://statistics.data.gov.uk/doc/local-authority-district/00AR,London Borough of Havering,23/03/2015,9000.00,MAR15L199,Squirrels Heath Junior School,"Children, Adults & Housing",Learning & Achievement,HIAS Development Leadership Quality and Assurance,Quality and Assurance School Improvement,PRIVATE CONTRACTORS PAYMENT - OTHER
http://statistics.data.gov.uk/doc/local-authority-district/00AR,London Borough of Havering,26/03/2015,13989.03,MAR15L204,Capita Business Services Ltd,"Children, Adults & Housing",Childrens Services,Early Help,Early Help Business Unit,PRIVATE CONTRACTORS PAYMENT - OTHER
http://statistics.data.gov.uk/doc/local-authority-district/00AR,London Borough of Havering,25/03/2015,700.00,MAR15L205,Capita Business Services Ltd,"Children, Adults & Housing",Housing (HRA),Head Of Service,Head Of Service - HRA,STAFF DEVELOPMENT AND TRAINING
http://statistics.data.gov.uk/doc/local-authority-district/00AR,London Borough of Havering,14/03/2015,791.82,MAR15L206,Classic Security Solutions Ltd,"Children, Adults & Housing",Housing (HRA),Hsg Needs & Strategy,Hostels For The Homeless,MISCELLANEOUS EXPENSES
http://statistics.data.gov.uk/doc/local-authority-district/00AR,London Borough of Havering,28/03/2015,35.16,MAR15L207,Advantage Chemicals (Institutional) Ltd,"Children, Adults & Housing",Learning & Achievement,Borough Catering,Catering - Town Hall,CATERING AND VENDING SUPPLIES
http://statistics.data.gov.uk/doc/local-authority-district/00AR,London Borough of Havering,28/03/2015,96.64,MAR15L208,Advantage Chemicals (Institutional) Ltd,"Children, Adults & Housing",Learning & Achievement,Borough Catering,Catering - Redden Court,CATERING AND VENDING SUPPLIES
http://statistics.data.gov.uk/doc/local-authority-district/00AR,London Borough of Havering,28/03/2015,158.19,MAR15L209,Advantage Chemicals (Institutional) Ltd,"Children, Adults & Housing",Learning & Achievement,Borough Catering,Catering - Hall Mead,CATERING AND VENDING SUPPLIES
http://statistics.data.gov.uk/doc/local-authority-district/00AR,London Borough of Havering,28/03/2015,158.22,MAR15L210,Advantage Chemicals (Institutional) Ltd,"Children, Adults & Housing",Learning & Achievement,Borough Catering,Catering - Brittons,CATERING AND VENDING SUPPLIES
http://statistics.data.gov.uk/doc/local-authority-district/00AR,London Borough of Havering,28/03/2015,195.88,MAR15L211,Advantage Chemicals (Institutional) Ltd,"Children, Adults & Housing",Learning & Achievement,Borough Catering,Catering - Royal Liberty,CATERING AND VENDING SUPPLIES
http://statistics.data.gov.uk/doc/local-authority-district/00AR,London Borough of Havering,28/03/2015,197.68,MAR15L212,Advantage Chemicals (Institutional) Ltd,"Children, Adults & Housing",Learning & Achievement,Borough Catering,Catering - Bower Park,CATERING AND VENDING SUPPLIES
http://statistics.data.gov.uk/doc/local-authority-district/00AR,London Borough of Havering,28/03/2015,247.71,MAR15L213,Advantage Chemicals (Institutional) Ltd,"Children, Adults & Housing",Learning & Achievement,Borough Catering,Catering - Frances Bardsley,CATERING AND VENDING SUPPLIES
http://statistics.data.gov.uk/doc/local-authority-district/00AR,London Borough of Havering,10/03/2015,690.00,MAR15L214,Drs M M & T Rahman,Public Health,Public Health,PH - Sexual Health,SH - STI Testing and Treatment,PRIVATE CONTRACTORS PAYMENT - OTHER
http://statistics.data.gov.uk/doc/local-authority-district/00AR,London Borough of Havering,28/03/2015,814.20,MAR15L225,City of London,Community and Resources,Transformation Agenda,People And Change Transformation,Reward & Recognition,PRIVATE CONTRACTORS PAYMENT - OTHER
http://statistics.data.gov.uk/doc/local-authority-district/00AR,London Borough of Havering,28/03/2015,814.20,MAR15L226,City of London,Community and Resources,Transformation Agenda,People And Change Transformation,Reward & Recognition,PRIVATE CONTRACTORS PAYMENT - OTHER
http://statistics.data.gov.uk/doc/local-authority-district/00AR,London Borough of Havering,28/03/2015,1627.00,MAR15L227,City of London,Community and Resources,Transformation Agenda,People And Change Transformation,Reward & Recognition,PRIVATE CONTRACTORS PAYMENT - OTHER
http://statistics.data.gov.uk/doc/local-authority-district/00AR,London Borough of Havering,10/03/2015,2155.00,MAR15L228,Dr R Chowdhury,Public Health,Public Health,PH - Sexual Health,SH - STI Testing and Treatment,PRIVATE CONTRACTORS PAYMENT - OTHER
http://statistics.data.gov.uk/doc/local-authority-district/00AR,London Borough of Havering,24/03/2015,1137.00,MAR15L229,Demco Europe Ltd,Community and Resources,Culture & Leisure,Library Service,Libraries Admin,STAFF DEVELOPMENT AND TRAINING
http://statistics.data.gov.uk/doc/local-authority-district/00AR,London Borough of Havering,26/03/2015,63.08,MAR15L230,Archant London,Community and Resources,Regulatory Services,Environmental Health,Envir Health - Commercial,LEGAL FEES
http://statistics.data.gov.uk/doc/local-authority-district/00AR,London Borough of Havering,26/03/2015,164.64,MAR15L231,Archant London,Community and Resources,Streetcare,Borough Roads,Bor Rds-Admin (CEC),LEGAL FEES
http://statistics.data.gov.uk/doc/local-authority-district/00AR,London Borough of Havering,26/03/2015,185.00,MAR15L232,Archant London,Community and Resources,Communications,Communications Holding Account,Events,PRIVATE CONTRACTORS PAYMENT - OTHER
http://statistics.data.gov.uk/doc/local-authority-district/00AR,London Borough of Havering,26/03/2015,199.93,MAR15L233,Archant London,Community and Resources,Streetcare,Borough Roads B & TS,Bor Rds-Minor Safety Imps,"ADVERTISING, PUBLICITY AND MARKETING"
http://statistics.data.gov.uk/doc/local-authority-district/00AR,London Borough of Havering,26/03/2015,248.38,MAR15L234,Archant London,Community and Resources,Streetcare,Borough Roads,New Rds And St Works Act,FEES & CHARGES INCOME - OTHER
http://statistics.data.gov.uk/doc/local-authority-district/00AR,London Borough of Havering,26/03/2015,400.00,MAR15L235,Archant London,"Children, Adults & Housing",Homes & Housing,Strategy,Private Sector Leasing,"ADVERTISING, PUBLICITY AND MARKETING"
http://statistics.data.gov.uk/doc/local-authority-district/00AR,London Borough of Havering,26/03/2015,616.87,MAR15L236,Archant London,Community and Resources,Regulatory Services,Development Control Svs,Planning Control,"ADVERTISING, PUBLICITY AND MARKETING"
http://statistics.data.gov.uk/doc/local-authority-district/00AR,London Borough of Havering,26/03/2015,750.00,MAR15L237,Archant London,Community and Resources,Policy & Community Manager,Corporate Policy and Community,Energy Strategy Team,"ADVERTISING, PUBLICITY AND MARKETING"
http://statistics.data.gov.uk/doc/local-authority-district/00AR,London Borough of Havering,26/03/2015,1843.09,MAR15L238,Archant London,Community and Resources,Streetcare,Borough Roads,Carriageway Maintenance - Planned,PRIVATE CONTRACTORS PAYMENT - OTHER
http://statistics.data.gov.uk/doc/local-authority-district/00AR,London Borough of Havering,26/03/2015,2423.95,MAR15L239,Archant London,Community and Resources,Streetcare,Parking Facilities,Parking-Minor Safety Imps (Bor Rds),"ADVERTISING, PUBLICITY AND MARKETING"
http://statistics.data.gov.uk/doc/local-authority-district/00AR,London Borough of Havering,20/03/2015,70.56,MAR15L240,Archant London,oneSource Shared,oS Exchequer & Transactional Services,oS Council Tax,Revenues - Council Tax,LEGAL FEES
http://statistics.data.gov.uk/doc/local-authority-district/00AR,London Borough of Havering,20/03/2015,87.84,MAR15L241,Archant London,Community and Resources,Streetcare,Borough Roads B & TS,Bor Rds-Minor Safety Imps,"ADVERTISING, PUBLICITY AND MARKETING"
http://statistics.data.gov.uk/doc/local-authority-district/00AR,London Borough of Havering,20/03/2015,87.84,MAR15L242,Archant London,"Children, Adults & Housing",Homes & Housing,Strategy,Strategy-Housing GF,PROFESSIONAL SERVICES - GENERAL
http://statistics.data.gov.uk/doc/local-authority-district/00AR,London Borough of Havering,20/03/2015,157.11,MAR15L243,Archant London,Community and Resources,Streetcare,Borough Roads,Bor Rds-Admin (CEC),"ADVERTISING, PUBLICITY AND MARKETING"
http://statistics.data.gov.uk/doc/local-authority-district/00AR,London Borough of Havering,20/03/2015,172.12,MAR15L244,Archant London,Community and Resources,Regulatory Services,Environmental Health,Envir Health - Commercial,LEGAL FEES
http://statistics.data.gov.uk/doc/local-authority-district/00AR,London Borough of Havering,20/03/2015,229.58,MAR15L245,Archant London,Community and Resources,Regulatory Services,Development Planning,Development Planning,GENERAL OFFICE EXPENSES
http://statistics.data.gov.uk/doc/local-authority-district/00AR,London Borough of Havering,20/03/2015,250.00,MAR15L246,Archant London,"Children, Adults & Housing",Homes & Housing,Strategy,Private Sector Leasing,"ADVERTISING, PUBLICITY AND MARKETING"
http://statistics.data.gov.uk/doc/local-authority-district/00AR,London Borough of Havering,20/03/2015,259.45,MAR15L247,Archant London,Community and Resources,Streetcare,Borough Roads,Carriageway Maintenance - Planned,PRIVATE CONTRACTORS PAYMENT - OTHER
http://statistics.data.gov.uk/doc/local-authority-district/00AR,London Borough of Havering,20/03/2015,576.24,MAR15L248,Archant London,Community and Resources,Corporate Financial Matters,Corporate Management Team,CMT,"ADVERTISING, PUBLICITY AND MARKETING"
http://statistics.data.gov.uk/doc/local-authority-district/00AR,London Borough of Havering,20/03/2015,633.75,MAR15L249,Archant London,Community and Resources,Regulatory Services,Development Control Svs,Planning Control,"ADVERTISING, PUBLICITY AND MARKETING"
http://statistics.data.gov.uk/doc/local-authority-district/00AR,London Borough of Havering,20/03/2015,4821.64,MAR15L250,Archant London,Community and Resources,Streetcare,Parking Facilities,Parking-Minor Safety Imps (Bor Rds),"ADVERTISING, PUBLICITY AND MARKETING"
http://statistics.data.gov.uk/doc/local-authority-district/00AR,London Borough of Havering,26/03/2015,867.88,MAR15L251,PHS Group Plc,"Children, Adults & Housing",Adult Services,Learning Disabilities,Avelon Centre,CLEANING SERVICES
http://statistics.data.gov.uk/doc/local-authority-district/00AR,London Borough of Havering,19/03/2015,850.00,MAR15L252,University of East London,"Children, Adults & Housing",Adult Services,Health & Social Care Other,Adults Social Care Workforce Grant,STAFF DEVELOPMENT AND TRAINING
http://statistics.data.gov.uk/doc/local-authority-district/00AR,London Borough of Havering,24/03/2015,72678.00,MAR15L253,London Borough of Redbridge,"Children, Adults & Housing",Childrens Services,Childrens Social Services Other,Emergency Duty Team - Childrens,PAYMENT TO OTHER LOCAL AUTHORITIES
http://statistics.data.gov.uk/doc/local-authority-district/00AR,London Borough of Havering,24/03/2015,1000.00,MAR15L254,London Borough of Redbridge,"Children, Adults & Housing",Childrens Services,Prevention & Intervention,Social Work Improvement Team,STAFF DEVELOPMENT AND TRAINING
http://statistics.data.gov.uk/doc/local-authority-district/00AR,London Borough of Havering,12/03/2015,34039.00,MAR15L255,St John's School,"Children, Adults & Housing",Learning & Achievement,Schools Provision and Commissioning,Residential Post Budget,PRIVATE CONTRACTORS PAYMENT - OTHER
http://statistics.data.gov.uk/doc/local-authority-district/00AR,London Borough of Havering,12/03/2015,4860.33,MAR15L256,St John's School,"Children, Adults & Housing",Learning & Achievement,Schools Provision and Commissioning,Residential Post Budget,PRIVATE CONTRACTORS PAYMENT - OTHER
http://statistics.data.gov.uk/doc/local-authority-district/00AR,London Borough of Havering,20/03/2015,970.99,MAR15L257,Steaming Ltd,"Children, Adults & Housing",Learning & Achievement,Alternative Provision including LAC education,Attendance and Behaviour CORE,PRIVATE CONTRACTORS PAYMENT - OTHER
http://statistics.data.gov.uk/doc/local-authority-district/00AR,London Borough of Havering,28/03/2015,1760.00,MAR15L258,JKH Carriage Service,oneSource Shared,oS ICT Services,oS Commercial Services,Educational Computer Centre,VEHICLE HIRE
http://statistics.data.gov.uk/doc/local-authority-district/00AR,London Borough of Havering,02/03/2015,5400.00,MAR15L270,Improvement & Development Agency for Local Government,oneSource Non-Shared LBH,Strategic HR & OD,People & Change,National Management Trainees,STAFF OTHER EXPENSES
http://statistics.data.gov.uk/doc/local-authority-district/00AR,London Borough of Havering,18/03/2015,15000.00,MAR15L271,Dame Tipping Primary School,"Children, Adults & Housing",Learning & Achievement,HIAS Development Leadership Quality and Assurance,Quality and Assurance School Improvement,PRIVATE CONTRACTORS PAYMENT - OTHER
http://statistics.data.gov.uk/doc/local-authority-district/00AR,London Borough of Havering,05/03/2015,695.67,MAR15L286,G4S Cash Solutions (UK) Ltd,Community and Resources,Culture & Leisure,Library Service,Libraries Admin,PRIVATE CONTRACTORS PAYMENT - OTHER
http://statistics.data.gov.uk/doc/local-authority-district/00AR,London Borough of Havering,26/03/2015,695.67,MAR15L287,G4S Cash Solutions (UK) Ltd,Community and Resources,Culture & Leisure,Library Service,Libraries Admin,PRIVATE CONTRACTORS PAYMENT - OTHER
http://statistics.data.gov.uk/doc/local-authority-district/00AR,London Borough of Havering,16/03/2015,720.00,MAR15L295,The Mawney Foundation School,"Children, Adults & Housing",Learning & Achievement,Community Use,Primary - NNDR And Rent,RENTS PAYABLE
http://statistics.data.gov.uk/doc/local-authority-district/00AR,London Borough of Havering,25/03/2015,3780.00,MAR15L296,Interquest Group UK Ltd,"Children, Adults & Housing",Childrens Services,Childrens Social Services Other,Contact Point,CONSULTANCY FEES
http://statistics.data.gov.uk/doc/local-authority-district/00AR,London Borough of Havering,26/03/2015,3150.00,MAR15L297,Interquest Group UK Ltd,"Children, Adults & Housing",Childrens Services,Childrens Social Services Other,Contact Point,CONSULTANCY FEES
http://statistics.data.gov.uk/doc/local-authority-district/00AR,London Borough of Havering,26/03/2015,1575.00,MAR15L298,Interquest Group UK Ltd,"Children, Adults & Housing",Childrens Services,Childrens Social Services Other,Contact Point,CONSULTANCY FEES
http://statistics.data.gov.uk/doc/local-authority-district/00AR,London Borough of Havering,26/03/2015,1575.00,MAR15L299,Interquest Group UK Ltd,"Children, Adults & Housing",Childrens Services,Childrens Social Services Other,Contact Point,CONSULTANCY FEES
http://statistics.data.gov.uk/doc/local-authority-district/00AR,London Borough of Havering,26/03/2015,1575.00,MAR15L300,Interquest Group UK Ltd,"Children, Adults & Housing",Childrens Services,Childrens Social Services Other,Contact Point,CONSULTANCY FEES
http://statistics.data.gov.uk/doc/local-authority-district/00AR,London Borough of Havering,26/03/2015,1575.00,MAR15L301,Interquest Group UK Ltd,"Children, Adults & Housing",Childrens Services,Childrens Social Services Other,Contact Point,CONSULTANCY FEES
http://statistics.data.gov.uk/doc/local-authority-district/00AR,London Borough of Havering,26/03/2015,1575.00,MAR15L302,Interquest Group UK Ltd,"Children, Adults & Housing",Childrens Services,Childrens Social Services Other,Contact Point,CONSULTANCY FEES
http://statistics.data.gov.uk/doc/local-authority-district/00AR,London Borough of Havering,30/03/2015,1575.00,MAR15L303,Interquest Group UK Ltd,"Children, Adults & Housing",Childrens Services,Childrens Social Services Other,Contact Point,CONSULTANCY FEES
http://statistics.data.gov.uk/doc/local-authority-district/00AR,London Borough of Havering,18/03/2015,15000.00,MAR15L305,Benhurst Primary School,"Children, Adults & Housing",Learning & Achievement,HIAS Development Leadership Quality and Assurance,Quality and Assurance School Improvement,PRIVATE CONTRACTORS PAYMENT - OTHER
http://statistics.data.gov.uk/doc/local-authority-district/00AR,London Borough of Havering,24/03/2015,1000.00,MAR15L343,Ardleigh Green Junior School,"Children, Adults & Housing",Learning & Achievement,HIAS Development Leadership Quality and Assurance,Early Years Quality and Assurance Team - CORE,STAFF DEVELOPMENT AND TRAINING
http://statistics.data.gov.uk/doc/local-authority-district/00AR,London Borough of Havering,10/03/2015,1560.00,MAR15L348,Dr G S Saini & Partners,Public Health,Public Health,PH - Sexual Health,SH - STI Testing and Treatment,PRIVATE CONTRACTORS PAYMENT - OTHER
http://statistics.data.gov.uk/doc/local-authority-district/00AR,London Borough of Havering,26/03/2015,1700.00,MAR15L349,Susan Dixon Consultancy Ltd,"Children, Adults & Housing",Adult Services,Health & Social Care Other,Adults Social Care Workforce Grant,STAFF DEVELOPMENT AND TRAINING
http://statistics.data.gov.uk/doc/local-authority-district/00AR,London Borough of Havering,12/03/2015,22976.84,MAR15L354,Dycorts School,oneSource Non-Shared LBH,Asset Management,Education Asset Management,Maintenance Non-Delegated,RESPONSIVE REPAIRS - BUILDING
http://statistics.data.gov.uk/doc/local-authority-district/00AR,London Borough of Havering,17/03/2015,17000.00,MAR15L359,Dycorts School,"Children, Adults & Housing",Learning & Achievement,HIAS Development Leadership Quality and Assurance,Quality and Assurance School Improvement,PRIVATE CONTRACTORS PAYMENT - OTHER
http://statistics.data.gov.uk/doc/local-authority-district/00AR,London Borough of Havering,03/03/2015,666.00,MAR15L360,GovNet Communications,"Children, Adults & Housing",Adult Services,Health & Social Care Other,Adults Social Care Workforce Grant,STAFF DEVELOPMENT AND TRAINING
http://statistics.data.gov.uk/doc/local-authority-district/00AR,London Borough of Havering,11/03/2015,1188.00,MAR15L361,OCN Contract Services,"Children, Adults & Housing",Housing (HRA),Hsg Needs & Strategy,Hostels For The Homeless,PRIVATE CONTRACTORS PAYMENT - OTHER
http://statistics.data.gov.uk/doc/local-authority-district/00AR,London Borough of Havering,13/03/2015,1997.25,MAR15L362,Solon Security Ltd,Community and Resources,Policy & Community Manager,Community Safety,Building Safer Communities Fund,PRIVATE CONTRACTORS PAYMENT - OTHER
http://statistics.data.gov.uk/doc/local-authority-district/00AR,London Borough of Havering,13/03/2015,225.49,MAR15L363,Solon Security Ltd,Community and Resources,Policy & Community Manager,Community Safety,Community Safety.,PRIVATE CONTRACTORS PAYMENT - OTHER
http://statistics.data.gov.uk/doc/local-authority-district/00AR,London Borough of Havering,13/03/2015,1774.01,MAR15L364,Solon Security Ltd,Community and Resources,Policy & Community Manager,Community Safety,Building Safer Communities Fund,PRIVATE CONTRACTORS PAYMENT - OTHER
http://statistics.data.gov.uk/doc/local-authority-district/00AR,London Borough of Havering,25/03/2015,-591.90,MAR15L370,Child Accident Prevention Trust,"Children, Adults & Housing",Childrens Services,Early Help,Early Help South Locality,PRIVATE CONTRACTORS PAYMENT - OTHER
http://statistics.data.gov.uk/doc/local-authority-district/00AR,London Borough of Havering,24/03/2015,591.90,MAR15L371,Child Accident Prevention Trust,"Children, Adults & Housing",Childrens Services,Early Help,Early Help South Locality,PRIVATE CONTRACTORS PAYMENT - OTHER
http://statistics.data.gov.uk/doc/local-authority-district/00AR,London Borough of Havering,25/03/2015,630.90,MAR15L372,Child Accident Prevention Trust,"Children, Adults & Housing",Childrens Services,Early Help,Early Help South Locality,PRIVATE CONTRACTORS PAYMENT - OTHER
http://statistics.data.gov.uk/doc/local-authority-district/00AR,London Borough of Havering,05/03/2015,1150.00,MAR15L373,Herts Handling Training,"Children, Adults & Housing",Adult Services,Health & Social Care Other,Adults Social Care Workforce Grant,STAFF DEVELOPMENT AND TRAINING
http://statistics.data.gov.uk/doc/local-authority-district/00AR,London Borough of Havering,26/03/2015,816.00,MAR15L374,Gunnebo UK Ltd,oneSource Non-Shared LBH,Asset Management,Premises Management,Corporate Landlord-LBH,CYCLICAL/PLANNED MAINTENANCE - BUILDING
http://statistics.data.gov.uk/doc/local-authority-district/00AR,London Borough of Havering,10/03/2015,655.00,MAR15L375,Dr Abdul Razaq M Abdullah,Public Health,Public Health,PH - Sexual Health,SH - STI Testing and Treatment,PRIVATE CONTRACTORS PAYMENT - OTHER
http://statistics.data.gov.uk/doc/local-authority-district/00AR,London Borough of Havering,27/03/2015,4386.00,MAR15L376,Meteorological Office,Community and Resources,Streetcare,Highways Cost Recovery Account,Highways Cost Recovery Account,PRIVATE CONTRACTORS PAYMENT - OTHER
http://statistics.data.gov.uk/doc/local-authority-district/00AR,London Borough of Havering,10/03/2015,740.00,MAR15L377,The Robins Surgery,Public Health,Public Health,PH - Sexual Health,SH - STI Testing and Treatment,PRIVATE CONTRACTORS PAYMENT - OTHER
http://statistics.data.gov.uk/doc/local-authority-district/00AR,London Borough of Havering,04/03/2015,899.64,MAR15L378,**Redacted Personal Data**,Community and Resources,Regulatory Services,Crematorium & Cems,Bereavement Customer Services,PRIVATE CONTRACTORS PAYMENT - OTHER
http://statistics.data.gov.uk/doc/local-authority-district/00AR,London Borough of Havering,10/03/2015,685.00,MAR15L379,**Redacted Personal Data**,Public Health,Public Health,PH - NHS Health Check Programme,NHS Health Checks - Mandatory,PRIVATE CONTRACTORS PAYMENT - OTHER
http://statistics.data.gov.uk/doc/local-authority-district/00AR,London Borough of Havering,04/03/2015,899.64,MAR15L380,Dr I P Humberstone,Community and Resources,Regulatory Services,Crematorium & Cems,Bereavement Customer Services,PRIVATE CONTRACTORS PAYMENT - OTHER
http://statistics.data.gov.uk/doc/local-authority-district/00AR,London Borough of Havering,27/03/2015,2707.55,MAR15L381,Space Kraft Ltd,"Children, Adults & Housing",Childrens Services,Early Help,Early Help South Locality,PRIVATE CONTRACTORS PAYMENT - OTHER
http://statistics.data.gov.uk/doc/local-authority-district/00AR,London Borough of Havering,20/03/2015,1643.40,MAR15L382,Care UK Homecare,"Children, Adults & Housing",Adult Services,Learning Disabilities,Learning Disability Support,HOME CARE - PRIVATE CONTRACTORS PAYMENT
http://statistics.data.gov.uk/doc/local-authority-district/00AR,London Borough of Havering,10/03/2015,980.00,MAR15L383,Dr P Patel,Public Health,Public Health,PH - Sexual Health,SH - STI Testing and Treatment,PRIVATE CONTRACTORS PAYMENT - OTHER
http://statistics.data.gov.uk/doc/local-authority-district/00AR,London Borough of Havering,25/03/2015,597.00,MAR15L384,Eastern Leadership Centre,"Children, Adults & Housing",Learning & Achievement,Traded Services,Havering Governor Services,PRIVATE CONTRACTORS PAYMENT - OTHER
http://statistics.data.gov.uk/doc/local-authority-district/00AR,London Borough of Havering,30/03/2015,1105.00,MAR15L385,London & Quadrant Housing Trust,"Children, Adults & Housing",Housing (HRA),Hsg Needs & Strategy,Havering Telecare Centre,SPECIAL GUARDIANSHIP
http://statistics.data.gov.uk/doc/local-authority-district/00AR,London Borough of Havering,26/03/2015,2300.95,MAR15L386,WRS Group,"Children, Adults & Housing",Childrens Services,Early Help,Early Help Business Unit,"ADVERTISING, PUBLICITY AND MARKETING"
http://statistics.data.gov.uk/doc/local-authority-district/00AR,London Borough of Havering,24/03/2015,572.84,MAR15L387,Demco Europe Ltd t/a Demco Interiors,Community and Resources,Culture & Leisure,Library Service,Bibliographical Services,"BOOKS, PUBLICATIONS AND RESOURCES"
http://statistics.data.gov.uk/doc/local-authority-district/00AR,London Borough of Havering,24/03/2015,803.60,MAR15L388,Demco Europe Ltd t/a Demco Interiors,Community and Resources,Culture & Leisure,Library Service,Libraries Admin,STAFF DEVELOPMENT AND TRAINING
http://statistics.data.gov.uk/doc/local-authority-district/00AR,London Borough of Havering,30/03/2015,638.00,MAR15L389,Demco Europe Ltd t/a Demco Interiors,Community and Resources,Culture & Leisure,Library Service,Libraries Admin,STAFF DEVELOPMENT AND TRAINING
http://statistics.data.gov.uk/doc/local-authority-district/00AR,London Borough of Havering,30/03/2015,837.35,MAR15L390,Demco Europe Ltd t/a Demco Interiors,Community and Resources,Culture & Leisure,Library Service,Libraries Admin,STAFF DEVELOPMENT AND TRAINING
http://statistics.data.gov.uk/doc/local-authority-district/00AR,London Borough of Havering,10/03/2015,1605.00,MAR15L391,"Drs Zachariah, Lee, Acheson & Sinha",Public Health,Public Health,PH - Sexual Health,SH - STI Testing and Treatment,PRIVATE CONTRACTORS PAYMENT - OTHER
http://statistics.data.gov.uk/doc/local-authority-district/00AR,London Borough of Havering,31/03/2015,1602.50,MAR15L392,Skills Training Centre Ltd,Community and Resources,Streetcare,Streetcare Management,Street Care Support Costs,STAFF DEVELOPMENT AND TRAINING
http://statistics.data.gov.uk/doc/local-authority-district/00AR,London Borough of Havering,24/03/2015,1304.00,MAR15L393,London Bridges Engineering Group,Community and Resources,Streetcare,Borough Roads B & TS,Highway Structures Integr,PRIVATE CONTRACTORS PAYMENT - OTHER
http://statistics.data.gov.uk/doc/local-authority-district/00AR,London Borough of Havering,10/03/2015,1490.00,MAR15L394,Dr Kulendran & Associates,Public Health,Public Health,PH - Sexual Health,SH - STI Testing and Treatment,PRIVATE CONTRACTORS PAYMENT - OTHER
http://statistics.data.gov.uk/doc/local-authority-district/00AR,London Borough of Havering,26/03/2015,6667.00,MAR15L395,PricewaterhouseCoopers LLP,Community and Resources,Corporate Financial Matters,Corp Fin Transactions,Corporate Expenses,PRIVATE CONTRACTORS PAYMENT - OTHER
http://statistics.data.gov.uk/doc/local-authority-district/00AR,London Borough of Havering,04/03/2015,101.69,MAR15L396,Allpay Ltd,oneSource Non-Shared LBH,Exchequer Services,Revenues Subsidy,Iman,PRIVATE CONTRACTORS PAYMENT - OTHER
http://statistics.data.gov.uk/doc/local-authority-district/00AR,London Borough of Havering,04/03/2015,3628.06,MAR15L397,Allpay Ltd,oneSource Shared,oS Exchequer & Transactional Services,oS Council Tax,Revenues - Council Tax,PRIVATE CONTRACTORS PAYMENT - OTHER
http://statistics.data.gov.uk/doc/local-authority-district/00AR,London Borough of Havering,30/03/2015,2153.91,MAR15L398,Allpay Ltd,oneSource Shared,oS Exchequer & Transactional Services,oS Council Tax,Revenues - Council Tax,PRIVATE CONTRACTORS PAYMENT - OTHER
http://statistics.data.gov.uk/doc/local-authority-district/00AR,London Borough of Havering,14/03/2015,5555.52,MAR15L399,Allpay Ltd,"Children, Adults & Housing",Housing (HRA),Community Support Services,Rents (HRA),PRIVATE CONTRACTORS PAYMENT - OTHER
http://statistics.data.gov.uk/doc/local-authority-district/00AR,London Borough of Havering,17/03/2015,7920.00,MAR15L400,Safesmart Ltd,oneSource Non-Shared LBH,Asset Management,Corp Safety & Facilities,Health & Safety Provision,GROUNDS MAINTENANCE
http://statistics.data.gov.uk/doc/local-authority-district/00AR,London Borough of Havering,10/03/2015,555.00,MAR15L401,Modern Medical Centre,Public Health,Public Health,PH - Sexual Health,SH - STI Testing and Treatment,PRIVATE CONTRACTORS PAYMENT - OTHER
http://statistics.data.gov.uk/doc/local-authority-district/00AR,London Borough of Havering,26/03/2015,640.56,MAR15L402,Avon Road Surgery,Public Health,Public Health,PH - Sexual Health,SH - Contraception,PRIVATE CONTRACTORS PAYMENT - OTHER
http://statistics.data.gov.uk/doc/local-authority-district/00AR,London Borough of Havering,06/03/2015,182.00,MAR15L403,GB Group Plc,oneSource Shared,oS Exchequer & Transactional Services,oS Transactional Services,Transactional HR,PRIVATE CONTRACTORS PAYMENT - OTHER
http://statistics.data.gov.uk/doc/local-authority-district/00AR,London Borough of Havering,06/03/2015,1144.00,MAR15L404,GB Group Plc,"Children, Adults & Housing",Childrens Services,Childrens Social Services Other,Sen Staff-Children & Fami,STAFF OTHER EXPENSES
http://statistics.data.gov.uk/doc/local-authority-district/00AR,London Borough of Havering,06/03/2015,1282.00,MAR15L405,GB Group Plc,oneSource Shared,oS Exchequer & Transactional Services,oS Transactional Services,Transactional HR,PRIVATE CONTRACTORS PAYMENT - OTHER
http://statistics.data.gov.uk/doc/local-authority-district/00AR,London Borough of Havering,06/03/2015,626.00,MAR15L406,GB Group Plc,oneSource Shared,oS Exchequer & Transactional Services,oS Transactional Services,Transactional HR,PRIVATE CONTRACTORS PAYMENT - OTHER
http://statistics.data.gov.uk/doc/local-authority-district/00AR,London Borough of Havering,06/03/2015,196.00,MAR15L407,GB Group Plc,oneSource Shared,oS Exchequer & Transactional Services,oS Transactional Services,Transactional HR,PRIVATE CONTRACTORS PAYMENT - OTHER
http://statistics.data.gov.uk/doc/local-authority-district/00AR,London Borough of Havering,06/03/2015,1232.00,MAR15L408,GB Group Plc,"Children, Adults & Housing",Childrens Services,Childrens Social Services Other,Sen Staff-Children & Fami,STAFF OTHER EXPENSES
http://statistics.data.gov.uk/doc/local-authority-district/00AR,London Borough of Havering,10/03/2015,1330.00,MAR15L409,Dr D Bass & Partners,Public Health,Public Health,PH - Sexual Health,SH - STI Testing and Treatment,PRIVATE CONTRACTORS PAYMENT - OTHER
http://statistics.data.gov.uk/doc/local-authority-district/00AR,London Borough of Havering,26/03/2015,6900.00,MAR15L410,Tri-X-Childcare Ltd,"Children, Adults & Housing",Childrens Services,Prevention & Intervention,Social Work Improvement Team,STAFF DEVELOPMENT AND TRAINING
http://statistics.data.gov.uk/doc/local-authority-district/00AR,London Borough of Havering,24/03/2015,2500.00,MAR15L411,Thames Chase Trust Ltd,Community and Resources,Culture & Leisure,Countryside Services,Countryside Management,PRIVATE CONTRACTORS PAYMENT - OTHER
http://statistics.data.gov.uk/doc/local-authority-district/00AR,London Borough of Havering,06/03/2015,1877.54,MAR15L412,Cedars Care Home for the Elderly_a,"Children, Adults & Housing",Adult Services,Adult Community Team,Physical Support,RESIDENTIAL PLACEMENTS - PRIVATE CONTRACTORS PAYMENT
http://statistics.data.gov.uk/doc/local-authority-district/00AR,London Borough of Havering,26/03/2015,10583.00,MAR15L413,Bridgewood Manor Hotel,"Children, Adults & Housing",Learning & Achievement,HIAS Development Leadership Quality and Assurance,Quality and Assurance School Improvement,PRIVATE CONTRACTORS PAYMENT - OTHER
http://statistics.data.gov.uk/doc/local-authority-district/00AR,London Borough of Havering,26/03/2015,1361.15,MAR15L414,TES Global Limited.,"Children, Adults & Housing",Learning & Achievement,Traded Services,HSIS Traded Services,PRIVATE CONTRACTORS PAYMENT - OTHER
http://statistics.data.gov.uk/doc/local-authority-district/00AR,London Borough of Havering,26/03/2015,2475.00,MAR15L415,TES Global Limited.,"Children, Adults & Housing",Learning & Achievement,Traded Services,HSIS Traded Services,PRIVATE CONTRACTORS PAYMENT - OTHER
http://statistics.data.gov.uk/doc/local-authority-district/00AR,London Borough of Havering,19/03/2015,878.29,MAR15L416,British Gas Trading Ltd,"Children, Adults & Housing",Homes & Housing,Strategy,Private Housing Solutions Team,PRIVATE CONTRACTORS PAYMENT - OTHER
http://statistics.data.gov.uk/doc/local-authority-district/00AR,London Borough of Havering,24/03/2015,721.29,MAR15L417,British Gas Trading Ltd,"Children, Adults & Housing",Homes & Housing,Strategy,Private Housing Solutions Team,PRIVATE CONTRACTORS PAYMENT - OTHER
http://statistics.data.gov.uk/doc/local-authority-district/00AR,London Borough of Havering,19/03/2015,606.14,MAR15L418,British Gas Trading Ltd t/as British Gas Business,"Children, Adults & Housing",Mental Health,Mental Health - Non Section 75,173 Bell Avenue,GAS
http://statistics.data.gov.uk/doc/local-authority-district/00AR,London Borough of Havering,19/03/2015,605.88,MAR15L419,British Gas Trading Ltd t/as British Gas Business,"Children, Adults & Housing",Mental Health,Mental Health - Non Section 75,81 Maybank Avenue,GAS
http://statistics.data.gov.uk/doc/local-authority-district/00AR,London Borough of Havering,03/03/2015,-926.68,MAR15L420,British Gas Trading Ltd t/as British Gas Business,Community and Resources,Culture & Leisure,Parks & Outdoor Sports,Parks&Open Spaces Gen Exp,ELECTRICITY
http://statistics.data.gov.uk/doc/local-authority-district/00AR,London Borough of Havering,03/03/2015,-1082.18,MAR15L421,British Gas Trading Ltd t/as British Gas Business,Community and Resources,Culture & Leisure,Parks & Outdoor Sports,Parks&Open Spaces Gen Exp,ELECTRICITY
http://statistics.data.gov.uk/doc/local-authority-district/00AR,London Borough of Havering,03/03/2015,-902.65,MAR15L422,British Gas Trading Ltd t/as British Gas Business,Community and Resources,Culture & Leisure,Parks & Outdoor Sports,Parks&Open Spaces Gen Exp,ELECTRICITY
http://statistics.data.gov.uk/doc/local-authority-district/00AR,London Borough of Havering,31/03/2015,35743.25,MAR15L423,British Gas Trading Ltd t/as British Gas Business,"Children, Adults & Housing",Housing (HRA),Maintenance,Estate Contracts,ELECTRICITY
http://statistics.data.gov.uk/doc/local-authority-district/00AR,London Borough of Havering,24/03/2015,1722.49,MAR15L424,Emerson Network Power Ltd,oneSource Shared,oS ICT Services,oS Unified Communications,Networking,PRIVATE CONTRACTORS PAYMENT - OTHER
http://statistics.data.gov.uk/doc/local-authority-district/00AR,London Borough of Havering,24/03/2015,1254.40,MAR15L425,Chipside Ltd,Community and Resources,Streetcare,Parking Facilities,Onstreet Parking,PRIVATE CONTRACTORS PAYMENT - OTHER
http://statistics.data.gov.uk/doc/local-authority-district/00AR,London Borough of Havering,19/03/2015,783.60,MAR15L426,Pace Fuelcare Ltd,Community and Resources,Culture & Leisure,Library Service,Branch Lib. Sth Hornchurch,LIQUID FUEL
http://statistics.data.gov.uk/doc/local-authority-district/00AR,London Borough of Havering,19/03/2015,1047.12,MAR15L427,Pace Fuelcare Ltd,Community and Resources,Culture & Leisure,Library Service,Branch Lib. Harold Hill,LIQUID FUEL
http://statistics.data.gov.uk/doc/local-authority-district/00AR,London Borough of Havering,23/03/2015,2577.00,MAR15L428,Pace Fuelcare Ltd,Community and Resources,Culture & Leisure,Youth Facilitation,Youth Facilitation - T3 - Based around Rainham,LIQUID FUEL
http://statistics.data.gov.uk/doc/local-authority-district/00AR,London Borough of Havering,26/03/2015,-2421.13,MAR15L429,Serco Limited,Community and Resources,Streetcare,Refuse Coll & Waste Dis,Recycling Trial,REFUSE COLLECTION
http://statistics.data.gov.uk/doc/local-authority-district/00AR,London Borough of Havering,26/03/2015,190.99,MAR15L430,Serco Limited,Community and Resources,Streetcare,Refuse Coll & Waste Dis,Garden Waste,REFUSE COLLECTION
http://statistics.data.gov.uk/doc/local-authority-district/00AR,London Borough of Havering,26/03/2015,470.70,MAR15L431,Serco Limited,Community and Resources,Streetcare,Refuse Coll & Waste Dis,Trade Waste,REFUSE COLLECTION
http://statistics.data.gov.uk/doc/local-authority-district/00AR,London Borough of Havering,26/03/2015,6793.17,MAR15L432,Serco Limited,Community and Resources,Streetcare,Refuse Coll & Waste Dis,Clinical Waste,REFUSE COLLECTION
http://statistics.data.gov.uk/doc/local-authority-district/00AR,London Borough of Havering,26/03/2015,7591.41,MAR15L433,Serco Limited,Community and Resources,Streetcare,Refuse Coll & Waste Dis,Bulky Items,REFUSE COLLECTION
http://statistics.data.gov.uk/doc/local-authority-district/00AR,London Borough of Havering,26/03/2015,-2752.32,MAR15L434,Serco Limited,Community and Resources,Streetcare,Refuse Coll & Waste Dis,Recycling Trial,REFUSE COLLECTION
http://statistics.data.gov.uk/doc/local-authority-district/00AR,London Borough of Havering,26/03/2015,419.34,MAR15L435,Serco Limited,Community and Resources,Streetcare,Refuse Coll & Waste Dis,Trade Waste,REFUSE COLLECTION
http://statistics.data.gov.uk/doc/local-authority-district/00AR,London Borough of Havering,26/03/2015,480.00,MAR15L436,Serco Limited,Community and Resources,Streetcare,Refuse Coll & Waste Dis,Garden Waste,REFUSE COLLECTION
http://statistics.data.gov.uk/doc/local-authority-district/00AR,London Borough of Havering,26/03/2015,6237.70,MAR15L437,Serco Limited,Community and Resources,Streetcare,Refuse Coll & Waste Dis,Bulky Items,REFUSE COLLECTION
http://statistics.data.gov.uk/doc/local-authority-district/00AR,London Borough of Havering,26/03/2015,6703.69,MAR15L438,Serco Limited,Community and Resources,Streetcare,Refuse Coll & Waste Dis,Clinical Waste,REFUSE COLLECTION
http://statistics.data.gov.uk/doc/local-authority-district/00AR,London Borough of Havering,26/03/2015,-1752.22,MAR15L439,Serco Limited,Community and Resources,Streetcare,Refuse Coll & Waste Dis,Recycling Trial,REFUSE COLLECTION
http://statistics.data.gov.uk/doc/local-authority-district/00AR,London Borough of Havering,26/03/2015,516.74,MAR15L440,Serco Limited,Community and Resources,Streetcare,Refuse Coll & Waste Dis,Trade Waste,REFUSE COLLECTION
http://statistics.data.gov.uk/doc/local-authority-district/00AR,London Borough of Havering,26/03/2015,3104.00,MAR15L441,Serco Limited,Community and Resources,Streetcare,Refuse Coll & Waste Dis,Garden Waste,REFUSE COLLECTION
http://statistics.data.gov.uk/doc/local-authority-district/00AR,London Borough of Havering,26/03/2015,4477.61,MAR15L442,Serco Limited,Community and Resources,Streetcare,Refuse Coll & Waste Dis,Bulky Items,REFUSE COLLECTION
http://statistics.data.gov.uk/doc/local-authority-district/00AR,London Borough of Havering,26/03/2015,6246.83,MAR15L443,Serco Limited,Community and Resources,Streetcare,Refuse Coll & Waste Dis,Clinical Waste,REFUSE COLLECTION
http://statistics.data.gov.uk/doc/local-authority-district/00AR,London Borough of Havering,26/03/2015,-1600.00,MAR15L444,Serco Limited,Community and Resources,Streetcare,Refuse Coll & Waste Dis,Recycling Trial,REFUSE COLLECTION
http://statistics.data.gov.uk/doc/local-authority-district/00AR,London Borough of Havering,26/03/2015,469.54,MAR15L445,Serco Limited,Community and Resources,Streetcare,Refuse Coll & Waste Dis,Trade Waste,REFUSE COLLECTION
http://statistics.data.gov.uk/doc/local-authority-district/00AR,London Borough of Havering,26/03/2015,3387.99,MAR15L446,Serco Limited,Community and Resources,Streetcare,Refuse Coll & Waste Dis,Garden Waste,REFUSE COLLECTION
http://statistics.data.gov.uk/doc/local-authority-district/00AR,London Borough of Havering,26/03/2015,6108.36,MAR15L447,Serco Limited,Community and Resources,Streetcare,Refuse Coll & Waste Dis,Bulky Items,REFUSE COLLECTION
http://statistics.data.gov.uk/doc/local-authority-district/00AR,London Borough of Havering,26/03/2015,6733.67,MAR15L448,Serco Limited,Community and Resources,Streetcare,Refuse Coll & Waste Dis,Clinical Waste,REFUSE COLLECTION
http://statistics.data.gov.uk/doc/local-authority-district/00AR,London Borough of Havering,26/03/2015,-2355.26,MAR15L449,Serco Limited,Community and Resources,Streetcare,Refuse Coll & Waste Dis,Recycling Trial,REFUSE COLLECTION
http://statistics.data.gov.uk/doc/local-authority-district/00AR,London Borough of Havering,26/03/2015,192.00,MAR15L450,Serco Limited,Community and Resources,Streetcare,Refuse Coll & Waste Dis,Garden Waste,REFUSE COLLECTION
http://statistics.data.gov.uk/doc/local-authority-district/00AR,London Borough of Havering,26/03/2015,572.75,MAR15L451,Serco Limited,Community and Resources,Streetcare,Refuse Coll & Waste Dis,Trade Waste,REFUSE COLLECTION
http://statistics.data.gov.uk/doc/local-authority-district/00AR,London Borough of Havering,26/03/2015,6741.57,MAR15L452,Serco Limited,Community and Resources,Streetcare,Refuse Coll & Waste Dis,Clinical Waste,REFUSE COLLECTION
http://statistics.data.gov.uk/doc/local-authority-district/00AR,London Borough of Havering,26/03/2015,7113.63,MAR15L453,Serco Limited,Community and Resources,Streetcare,Refuse Coll & Waste Dis,Bulky Items,REFUSE COLLECTION
http://statistics.data.gov.uk/doc/local-authority-district/00AR,London Borough of Havering,30/03/2015,2790.00,MAR15L454,SLM Ltd - Hornchurch Sports Centre,Community and Resources,Culture & Leisure,Youth Facilitation,Youth Facilitation - T3 - Based around Rainham,MISCELLANEOUS EXPENSES
http://statistics.data.gov.uk/doc/local-authority-district/00AR,London Borough of Havering,30/03/2015,990.00,MAR15L455,SLM Ltd - Hornchurch Sports Centre,Community and Resources,Culture & Leisure,Youth Facilitation,Youth Facilitation - T3 - Based around Rainham,MISCELLANEOUS EXPENSES
http://statistics.data.gov.uk/doc/local-authority-district/00AR,London Borough of Havering,04/03/2015,700.00,MAR15L456,SLM Ltd - Hornchurch Sports Centre,Community and Resources,Culture & Leisure,Sports Dev & Outdoor Ctrs,Sports Development,PRIVATE CONTRACTORS PAYMENT - OTHER
http://statistics.data.gov.uk/doc/local-authority-district/00AR,London Borough of Havering,02/03/2015,8124.66,MAR15L457,SLM Ltd - Hornchurch Sports Centre,Community and Resources,Culture & Leisure,Sports Dev & Outdoor Ctrs,Physical Activity,PRIVATE CONTRACTORS PAYMENT - OTHER
http://statistics.data.gov.uk/doc/local-authority-district/00AR,London Borough of Havering,19/03/2015,600.00,MAR15L458,Northgate Information Solutions UK Ltd,Community and Resources,Corporate & Customer Transformation,CRM,The Contact Centre,ICT SOFTWARE
http://statistics.data.gov.uk/doc/local-authority-district/00AR,London Borough of Havering,19/03/2015,5050.00,MAR15L459,Northgate Information Solutions UK Ltd,Community and Resources,Corporate & Customer Transformation,CRM,The Contact Centre,ICT SOFTWARE
http://statistics.data.gov.uk/doc/local-authority-district/00AR,London Borough of Havering,19/03/2015,1500.00,MAR15L460,Northgate Information Solutions UK Ltd,oneSource Shared,oS ICT Services,oS Application and Development,Applications Management,REVENUE EXPENDITURE FUNDED FROM CAPITAL UNDER STATUTE GRANTS
http://statistics.data.gov.uk/doc/local-authority-district/00AR,London Borough of Havering,05/03/2015,1344.55,MAR15L461,Northgate Information Solutions UK Ltd,"Children, Adults & Housing",Housing (HRA),Head Of Service,Head Of Service - HRA,ICT SOFTWARE
http://statistics.data.gov.uk/doc/local-authority-district/00AR,London Borough of Havering,19/03/2015,3238.15,MAR15L462,Northgate Information Solutions UK Ltd,oneSource Shared,oS ICT Services,oS Application and Development,Applications Management,REVENUE EXPENDITURE FUNDED FROM CAPITAL UNDER STATUTE GRANTS
http://statistics.data.gov.uk/doc/local-authority-district/00AR,London Borough of Havering,19/03/2015,1124.96,MAR15L463,Northgate Information Solutions UK Ltd,oneSource Shared,oS ICT Services,oS Application and Development,Applications Management,REVENUE EXPENDITURE FUNDED FROM CAPITAL UNDER STATUTE GRANTS
http://statistics.data.gov.uk/doc/local-authority-district/00AR,London Borough of Havering,05/03/2015,1145.47,MAR15L464,Northgate Information Solutions UK Ltd,"Children, Adults & Housing",Housing (HRA),Head Of Service,Head Of Service - HRA,ICT SOFTWARE
http://statistics.data.gov.uk/doc/local-authority-district/00AR,London Borough of Havering,24/03/2015,9000.00,MAR15L465,Northgate Information Solutions UK Ltd,oneSource Shared,oS Exchequer & Transactional Services,oS NNDR,Revenues - NNDR,CONSULTANCY FEES
http://statistics.data.gov.uk/doc/local-authority-district/00AR,London Borough of Havering,19/03/2015,620.20,MAR15L466,Northgate Information Solutions UK Ltd,Community and Resources,Corporate & Customer Transformation,CRM,Blue Badge Scheme,PRIVATE CONTRACTORS PAYMENT - OTHER
http://statistics.data.gov.uk/doc/local-authority-district/00AR,London Borough of Havering,24/03/2015,4500.00,MAR15L467,Learning Pool Ltd,oneSource Non-Shared LBH,Strategic HR & OD,People & Change,Occupational Health,PRIVATE CONTRACTORS PAYMENT - OTHER
http://statistics.data.gov.uk/doc/local-authority-district/00AR,London Borough of Havering,10/03/2015,680.00,MAR15L468,Hornchurch Healthcare,Public Health,Public Health,PH - Sexual Health,SH - STI Testing and Treatment,PRIVATE CONTRACTORS PAYMENT - OTHER
http://statistics.data.gov.uk/doc/local-authority-district/00AR,London Borough of Havering,26/03/2015,1110.00,MAR15L469,Maytech Communications Ltd,"Children, Adults & Housing",Housing (HRA),Head Of Service,Head Of Service - HRA,ICT LICENCES
http://statistics.data.gov.uk/doc/local-authority-district/00AR,London Borough of Havering,27/03/2015,60.00,MAR15L470,Dragon Services,"Children, Adults & Housing",Learning & Achievement,Borough Catering,Catering - Ardleigh Green,RESPONSIVE REPAIRS - MECHANICAL AND ELECTRICAL
http://statistics.data.gov.uk/doc/local-authority-district/00AR,London Borough of Havering,27/03/2015,60.00,MAR15L471,Dragon Services,"Children, Adults & Housing",Learning & Achievement,Borough Catering,Catering - Crownfield,RESPONSIVE REPAIRS - MECHANICAL AND ELECTRICAL
http://statistics.data.gov.uk/doc/local-authority-district/00AR,London Borough of Havering,27/03/2015,60.00,MAR15L472,Dragon Services,"Children, Adults & Housing",Learning & Achievement,Borough Catering,Catering - Engayne,RESPONSIVE REPAIRS - MECHANICAL AND ELECTRICAL
http://statistics.data.gov.uk/doc/local-authority-district/00AR,London Borough of Havering,27/03/2015,60.00,MAR15L473,Dragon Services,"Children, Adults & Housing",Learning & Achievement,Borough Catering,Catering - Mead,RESPONSIVE REPAIRS - MECHANICAL AND ELECTRICAL
http://statistics.data.gov.uk/doc/local-authority-district/00AR,London Borough of Havering,27/03/2015,60.00,MAR15L474,Dragon Services,"Children, Adults & Housing",Learning & Achievement,Borough Catering,Catering - Parklands,RESPONSIVE REPAIRS - MECHANICAL AND ELECTRICAL
http://statistics.data.gov.uk/doc/local-authority-district/00AR,London Borough of Havering,27/03/2015,60.00,MAR15L475,Dragon Services,"Children, Adults & Housing",Learning & Achievement,Borough Catering,Catering - St Edwards Primary,RESPONSIVE REPAIRS - MECHANICAL AND ELECTRICAL
http://statistics.data.gov.uk/doc/local-authority-district/00AR,London Borough of Havering,27/03/2015,60.00,MAR15L476,Dragon Services,"Children, Adults & Housing",Learning & Achievement,Borough Catering,Catering - St Patricks,RESPONSIVE REPAIRS - MECHANICAL AND ELECTRICAL
http://statistics.data.gov.uk/doc/local-authority-district/00AR,London Borough of Havering,27/03/2015,85.00,MAR15L477,Dragon Services,"Children, Adults & Housing",Learning & Achievement,Borough Catering,Catering - Crowlands,RESPONSIVE REPAIRS - MECHANICAL AND ELECTRICAL
http://statistics.data.gov.uk/doc/local-authority-district/00AR,London Borough of Havering,27/03/2015,149.90,MAR15L478,Dragon Services,"Children, Adults & Housing",Learning & Achievement,Borough Catering,Catering - St Marys,RESPONSIVE REPAIRS - MECHANICAL AND ELECTRICAL
http://statistics.data.gov.uk/doc/local-authority-district/00AR,London Borough of Havering,27/03/2015,244.41,MAR15L479,Dragon Services,"Children, Adults & Housing",Learning & Achievement,Borough Catering,Catering - Rise Park,RESPONSIVE REPAIRS - MECHANICAL AND ELECTRICAL
http://statistics.data.gov.uk/doc/local-authority-district/00AR,London Borough of Havering,27/03/2015,276.33,MAR15L480,Dragon Services,"Children, Adults & Housing",Learning & Achievement,Borough Catering,Catering - Towers,RESPONSIVE REPAIRS - MECHANICAL AND ELECTRICAL
http://statistics.data.gov.uk/doc/local-authority-district/00AR,London Borough of Havering,27/03/2015,432.38,MAR15L481,Dragon Services,"Children, Adults & Housing",Learning & Achievement,Borough Catering,Catering - Brookside,RESPONSIVE REPAIRS - MECHANICAL AND ELECTRICAL
http://statistics.data.gov.uk/doc/local-authority-district/00AR,London Borough of Havering,27/03/2015,60.00,MAR15L482,Dragon Services,"Children, Adults & Housing",Learning & Achievement,Borough Catering,Catering - Hilldene,RESPONSIVE REPAIRS - MECHANICAL AND ELECTRICAL
http://statistics.data.gov.uk/doc/local-authority-district/00AR,London Borough of Havering,27/03/2015,60.00,MAR15L483,Dragon Services,"Children, Adults & Housing",Learning & Achievement,Borough Catering,Catering - Rise Park,RESPONSIVE REPAIRS - MECHANICAL AND ELECTRICAL
http://statistics.data.gov.uk/doc/local-authority-district/00AR,London Borough of Havering,27/03/2015,60.00,MAR15L484,Dragon Services,"Children, Adults & Housing",Learning & Achievement,Borough Catering,Catering - St Marys,RESPONSIVE REPAIRS - MECHANICAL AND ELECTRICAL
http://statistics.data.gov.uk/doc/local-authority-district/00AR,London Borough of Havering,27/03/2015,60.00,MAR15L485,Dragon Services,"Children, Adults & Housing",Learning & Achievement,Borough Catering,Catering - Scotts,RESPONSIVE REPAIRS - MECHANICAL AND ELECTRICAL
http://statistics.data.gov.uk/doc/local-authority-district/00AR,London Borough of Havering,27/03/2015,60.00,MAR15L486,Dragon Services,"Children, Adults & Housing",Learning & Achievement,Borough Catering,Catering - Upminster,RESPONSIVE REPAIRS - MECHANICAL AND ELECTRICAL
http://statistics.data.gov.uk/doc/local-authority-district/00AR,London Borough of Havering,27/03/2015,60.00,MAR15L487,Dragon Services,"Children, Adults & Housing",Learning & Achievement,Borough Catering,Catering - Town Hall,RESPONSIVE REPAIRS - MECHANICAL AND ELECTRICAL
http://statistics.data.gov.uk/doc/local-authority-district/00AR,London Borough of Havering,27/03/2015,63.00,MAR15L488,Dragon Services,"Children, Adults & Housing",Learning & Achievement,Borough Catering,Catering - Scargill,RESPONSIVE REPAIRS - MECHANICAL AND ELECTRICAL
http://statistics.data.gov.uk/doc/local-authority-district/00AR,London Borough of Havering,27/03/2015,65.00,MAR15L489,Dragon Services,"Children, Adults & Housing",Learning & Achievement,Borough Catering,Catering - Gidea Park,RESPONSIVE REPAIRS - MECHANICAL AND ELECTRICAL
http://statistics.data.gov.uk/doc/local-authority-district/00AR,London Borough of Havering,27/03/2015,83.36,MAR15L490,Dragon Services,"Children, Adults & Housing",Learning & Achievement,Borough Catering,Catering - Redden Court,RESPONSIVE REPAIRS - MECHANICAL AND ELECTRICAL
http://statistics.data.gov.uk/doc/local-authority-district/00AR,London Borough of Havering,27/03/2015,85.00,MAR15L491,Dragon Services,"Children, Adults & Housing",Learning & Achievement,Borough Catering,Catering - Rainham,RESPONSIVE REPAIRS - MECHANICAL AND ELECTRICAL
http://statistics.data.gov.uk/doc/local-authority-district/00AR,London Borough of Havering,27/03/2015,120.00,MAR15L492,Dragon Services,"Children, Adults & Housing",Learning & Achievement,Borough Catering,Catering - St Peters,RESPONSIVE REPAIRS - MECHANICAL AND ELECTRICAL
http://statistics.data.gov.uk/doc/local-authority-district/00AR,London Borough of Havering,27/03/2015,121.20,MAR15L493,Dragon Services,"Children, Adults & Housing",Learning & Achievement,Borough Catering,Catering - Specials - Dycorts,RESPONSIVE REPAIRS - MECHANICAL AND ELECTRICAL
http://statistics.data.gov.uk/doc/local-authority-district/00AR,London Borough of Havering,27/03/2015,129.32,MAR15L494,Dragon Services,"Children, Adults & Housing",Learning & Achievement,Borough Catering,Catering - Hall Mead,RESPONSIVE REPAIRS - MECHANICAL AND ELECTRICAL
http://statistics.data.gov.uk/doc/local-authority-district/00AR,London Borough of Havering,27/03/2015,142.66,MAR15L495,Dragon Services,"Children, Adults & Housing",Learning & Achievement,Borough Catering,Catering - Frances Bardsley,RESPONSIVE REPAIRS - MECHANICAL AND ELECTRICAL
http://statistics.data.gov.uk/doc/local-authority-district/00AR,London Borough of Havering,27/03/2015,187.78,MAR15L496,Dragon Services,"Children, Adults & Housing",Learning & Achievement,Borough Catering,Catering - Towers,RESPONSIVE REPAIRS - MECHANICAL AND ELECTRICAL
http://statistics.data.gov.uk/doc/local-authority-district/00AR,London Borough of Havering,27/03/2015,341.71,MAR15L497,Dragon Services,"Children, Adults & Housing",Learning & Achievement,Borough Catering,Catering - Wykeham,RESPONSIVE REPAIRS - MECHANICAL AND ELECTRICAL
http://statistics.data.gov.uk/doc/local-authority-district/00AR,London Borough of Havering,27/03/2015,384.80,MAR15L498,Dragon Services,"Children, Adults & Housing",Learning & Achievement,Borough Catering,Catering - Branfil,RESPONSIVE REPAIRS - MECHANICAL AND ELECTRICAL
http://statistics.data.gov.uk/doc/local-authority-district/00AR,London Borough of Havering,24/03/2015,851.63,MAR15L499,Solace Women's Aid,"Children, Adults & Housing",Childrens Services,Prevention & Intervention,Under 12?s Social Work Team,SECTION 17 - PRIVATE CONTRACTORS PAYMENT
http://statistics.data.gov.uk/doc/local-authority-district/00AR,London Borough of Havering,18/03/2015,1496.74,MAR15L500,EE Ltd,oneSource Shared,oS ICT Services,oS Unified Communications,Corporate Telephone Systems,MOBILE PHONE COSTS
http://statistics.data.gov.uk/doc/local-authority-district/00AR,London Borough of Havering,18/03/2015,641.22,MAR15L501,EE Ltd,oneSource Shared,oS ICT Services,oS Unified Communications,Corporate Telephone Systems,MOBILE PHONE COSTS
http://statistics.data.gov.uk/doc/local-authority-district/00AR,London Borough of Havering,18/03/2015,510.04,MAR15L502,EE Ltd,oneSource Shared,oS ICT Services,oS Unified Communications,Corporate Telephone Systems,MOBILE PHONE COSTS
http://statistics.data.gov.uk/doc/local-authority-district/00AR,London Borough of Havering,18/03/2015,1308.45,MAR15L503,EE Ltd,oneSource Shared,oS ICT Services,oS Unified Communications,Corporate Telephone Systems,MOBILE PHONE COSTS
http://statistics.data.gov.uk/doc/local-authority-district/00AR,London Borough of Havering,25/03/2015,2800.00,MAR15L504,Post Office Ltd (Vehicle Licence Renewals),oneSource Non-Shared LBH,Asset Management,Transport Accounts,Vehicle & Plant,VEHICLE LICENSING
http://statistics.data.gov.uk/doc/local-authority-district/00AR,London Borough of Havering,23/03/2015,2000.00,MAR15L505,Albany School Academy,"Children, Adults & Housing",Learning & Achievement,Alternative Provision including LAC education,Social Inclusion,CLIENT SUPPORT - THIRD PARTY
http://statistics.data.gov.uk/doc/local-authority-district/00AR,London Borough of Havering,17/03/2015,650.00,MAR15L507,Albany School Academy,"Children, Adults & Housing",Childrens Services,Existing Placements,Pupil Premium for L A C,STAFF DEVELOPMENT AND TRAINING
http://statistics.data.gov.uk/doc/local-authority-district/00AR,London Borough of Havering,21/03/2015,650.00,MAR15L508,Albany School Academy,"Children, Adults & Housing",Childrens Services,Existing Placements,Pupil Premium for L A C,STAFF DEVELOPMENT AND TRAINING
http://statistics.data.gov.uk/doc/local-authority-district/00AR,London Borough of Havering,11/03/2015,12647.00,MAR15L509,Albany School Academy,"Children, Adults & Housing",Learning & Achievement,ISB Other,DSG Contingency,GENERAL CONTINGENCY
http://statistics.data.gov.uk/doc/local-authority-district/00AR,London Borough of Havering,23/03/2015,2000.00,MAR15L510,The Campion School Academy,"Children, Adults & Housing",Learning & Achievement,Alternative Provision including LAC education,Social Inclusion,CLIENT SUPPORT - THIRD PARTY
http://statistics.data.gov.uk/doc/local-authority-district/00AR,London Borough of Havering,11/03/2015,10068.00,MAR15L512,The Campion School Academy,"Children, Adults & Housing",Learning & Achievement,ISB Other,DSG Contingency,GENERAL CONTINGENCY
http://statistics.data.gov.uk/doc/local-authority-district/00AR,London Borough of Havering,23/03/2015,2000.00,MAR15L513,Sacred Heart of Mary Girls School Academy,"Children, Adults & Housing",Learning & Achievement,Alternative Provision including LAC education,Social Inclusion,CLIENT SUPPORT - THIRD PARTY
http://statistics.data.gov.uk/doc/local-authority-district/00AR,London Borough of Havering,11/03/2015,8360.00,MAR15L515,Sacred Heart of Mary Girls School Academy,"Children, Adults & Housing",Learning & Achievement,ISB Other,DSG Contingency,GENERAL CONTINGENCY
http://statistics.data.gov.uk/doc/local-authority-district/00AR,London Borough of Havering,26/03/2015,776.21,MAR15L516,Virgin Media Payments Ltd,oneSource Shared,oS ICT Services,oS Unified Communications,Core Infrastructure Support,LAND LINE TELEPHONE COSTS
http://statistics.data.gov.uk/doc/local-authority-district/00AR,London Borough of Havering,09/03/2015,6767.00,MAR15L517,A V Parts Master Ltd t/a AV Partsmaster,oneSource Shared,oS ICT Services,oS Commercial Services,Educational Computer Centre,PRIVATE CONTRACTORS PAYMENT - OTHER
http://statistics.data.gov.uk/doc/local-authority-district/00AR,London Borough of Havering,27/03/2015,2550.00,MAR15L518,A V Parts Master Ltd t/a AV Partsmaster,oneSource Shared,oS ICT Services,oS Commercial Services,Educational Computer Centre,PRIVATE CONTRACTORS PAYMENT - OTHER
http://statistics.data.gov.uk/doc/local-authority-district/00AR,London Borough of Havering,27/03/2015,2650.00,MAR15L519,A V Parts Master Ltd t/a AV Partsmaster,oneSource Shared,oS ICT Services,oS Commercial Services,Educational Computer Centre,PRIVATE CONTRACTORS PAYMENT - OTHER
http://statistics.data.gov.uk/doc/local-authority-district/00AR,London Borough of Havering,04/03/2015,1901.24,MAR15L520,Education Works Ltd,"Children, Adults & Housing",Learning & Achievement,Traded Services,English as a 2nd Language - Traded,STAFF DEVELOPMENT AND TRAINING
http://statistics.data.gov.uk/doc/local-authority-district/00AR,London Borough of Havering,30/03/2015,860.00,MAR15L521,Drugs Education Training,Community and Resources,Regulatory Services,Trading Standards,Trading Standards,STAFF DEVELOPMENT AND TRAINING
http://statistics.data.gov.uk/doc/local-authority-district/00AR,London Borough of Havering,10/03/2015,728.25,MAR15L522,Carcanirathwell Ltd,"Children, Adults & Housing",Childrens Services,Prevention & Intervention,Legal Costs - Children'S Social Care,LEGAL FEES
http://statistics.data.gov.uk/doc/local-authority-district/00AR,London Borough of Havering,24/03/2015,865.00,MAR15L523,Capgemini UK Plc,oneSource Shared,oS Business Services,oS Business Services,Business Services Management,ICT MAINTENANCE AND SUPPORT
http://statistics.data.gov.uk/doc/local-authority-district/00AR,London Borough of Havering,13/03/2015,3220.85,MAR15L524,The Reading Agency Ltd,Community and Resources,Culture & Leisure,Library Service,Bibliographical Services,"BOOKS, PUBLICATIONS AND RESOURCES"
http://statistics.data.gov.uk/doc/local-authority-district/00AR,London Borough of Havering,16/03/2015,2000.00,MAR15L525,Parasol Ltd,"Children, Adults & Housing",Adult Services,Strategy and Commissioning,Care Act Programme,CONSULTANCY FEES
http://statistics.data.gov.uk/doc/local-authority-district/00AR,London Borough of Havering,16/03/2015,2000.00,MAR15L526,Parasol Ltd,"Children, Adults & Housing",Adult Services,Strategy and Commissioning,Care Act Programme,CONSULTANCY FEES
http://statistics.data.gov.uk/doc/local-authority-district/00AR,London Borough of Havering,20/03/2015,1600.00,MAR15L527,Parasol Ltd,"Children, Adults & Housing",Adult Services,Strategy and Commissioning,Care Act Programme,CONSULTANCY FEES
http://statistics.data.gov.uk/doc/local-authority-district/00AR,London Borough of Havering,20/03/2015,2000.00,MAR15L528,Parasol Ltd,"Children, Adults & Housing",Adult Services,Strategy and Commissioning,Care Act Programme,CONSULTANCY FEES
http://statistics.data.gov.uk/doc/local-authority-district/00AR,London Borough of Havering,20/03/2015,1800.00,MAR15L529,Parasol Ltd,"Children, Adults & Housing",Adult Services,Strategy and Commissioning,Care Act Programme,"PURCHASE - EQUIPMENT, FURNITURE AND MATERIALS"
http://statistics.data.gov.uk/doc/local-authority-district/00AR,London Borough of Havering,14/03/2015,15000.00,MAR15L530,Body & Soul,"Children, Adults & Housing",Adult Services,Adult Community Team,HIV/Aids Support,PAYMENTS TO VOLUNTARY SECTOR
http://statistics.data.gov.uk/doc/local-authority-district/00AR,London Borough of Havering,25/03/2015,10000.00,MAR15L531,Drapers Academy,oneSource Non-Shared LBH,Asset Management,Prop & Land Hldgs,Commercial Property Management,GROUNDS MAINTENANCE
http://statistics.data.gov.uk/doc/local-authority-district/00AR,London Borough of Havering,23/03/2015,2000.00,MAR15L532,Drapers Academy,"Children, Adults & Housing",Learning & Achievement,Alternative Provision including LAC education,Social Inclusion,CLIENT SUPPORT - THIRD PARTY
http://statistics.data.gov.uk/doc/local-authority-district/00AR,London Borough of Havering,21/03/2015,1000.00,MAR15L534,Drapers Academy,"Children, Adults & Housing",Childrens Services,Existing Placements,Pupil Premium for L A C,STAFF DEVELOPMENT AND TRAINING
http://statistics.data.gov.uk/doc/local-authority-district/00AR,London Borough of Havering,17/03/2015,650.00,MAR15L535,Drapers Academy,"Children, Adults & Housing",Childrens Services,Existing Placements,Pupil Premium for L A C,STAFF DEVELOPMENT AND TRAINING
http://statistics.data.gov.uk/doc/local-authority-district/00AR,London Borough of Havering,21/03/2015,650.00,MAR15L536,Drapers Academy,"Children, Adults & Housing",Childrens Services,Existing Placements,Pupil Premium for L A C,STAFF DEVELOPMENT AND TRAINING
http://statistics.data.gov.uk/doc/local-authority-district/00AR,London Borough of Havering,17/03/2015,650.00,MAR15L537,Drapers Academy,"Children, Adults & Housing",Childrens Services,Existing Placements,Pupil Premium for L A C,STAFF DEVELOPMENT AND TRAINING
http://statistics.data.gov.uk/doc/local-authority-district/00AR,London Borough of Havering,21/03/2015,650.00,MAR15L538,Drapers Academy,"Children, Adults & Housing",Childrens Services,Existing Placements,Pupil Premium for L A C,STAFF DEVELOPMENT AND TRAINING
http://statistics.data.gov.uk/doc/local-authority-district/00AR,London Borough of Havering,21/03/2015,650.00,MAR15L539,Drapers Academy,"Children, Adults & Housing",Childrens Services,Existing Placements,Pupil Premium for L A C,STAFF DEVELOPMENT AND TRAINING
http://statistics.data.gov.uk/doc/local-authority-district/00AR,London Borough of Havering,21/03/2015,650.00,MAR15L540,Drapers Academy,"Children, Adults & Housing",Childrens Services,Existing Placements,Pupil Premium for L A C,STAFF DEVELOPMENT AND TRAINING
http://statistics.data.gov.uk/doc/local-authority-district/00AR,London Borough of Havering,11/03/2015,10079.00,MAR15L541,Drapers Academy,"Children, Adults & Housing",Learning & Achievement,ISB Other,DSG Contingency,GENERAL CONTINGENCY
http://statistics.data.gov.uk/doc/local-authority-district/00AR,London Borough of Havering,30/03/2015,1336.20,MAR15L542,Imperial Polythene Products Ltd,Community and Resources,Streetcare,Refuse Coll & Waste Dis,Garden Waste,PRIVATE CONTRACTORS PAYMENT - OTHER
http://statistics.data.gov.uk/doc/local-authority-district/00AR,London Borough of Havering,30/03/2015,1092.00,MAR15L543,Imperial Polythene Products Ltd,Community and Resources,Streetcare,Refuse Coll & Waste Dis,Trade Waste,PRIVATE CONTRACTORS PAYMENT - OTHER
http://statistics.data.gov.uk/doc/local-authority-district/00AR,London Borough of Havering,25/03/2015,12075.00,MAR15L544,Centre Academy East Anglia,"Children, Adults & Housing",Learning & Achievement,Schools Provision and Commissioning,Residential Post Budget,PRIVATE CONTRACTORS PAYMENT - OTHER
http://statistics.data.gov.uk/doc/local-authority-district/00AR,London Borough of Havering,24/03/2015,12075.00,MAR15L545,Centre Academy East Anglia,"Children, Adults & Housing",Learning & Achievement,Schools Provision and Commissioning,Residential Post Budget,PRIVATE CONTRACTORS PAYMENT - OTHER
http://statistics.data.gov.uk/doc/local-authority-district/00AR,London Borough of Havering,26/03/2015,700.00,MAR15L546,Soil Association Certification Ltd,"Children, Adults & Housing",Learning & Achievement,Borough Catering,Catering - Central Costs,"ADVERTISING, PUBLICITY AND MARKETING"
http://statistics.data.gov.uk/doc/local-authority-district/00AR,London Borough of Havering,26/03/2015,2495.00,MAR15L547,**Redacted Personal Data**,"Children, Adults & Housing",Childrens Services,Prevention & Intervention,Legal Costs - Children'S Social Care,LEGAL FEES
http://statistics.data.gov.uk/doc/local-authority-district/00AR,London Borough of Havering,17/03/2015,434.00,MAR15L548,Citibank Europe Plc,"Children, Adults & Housing",Adult Services,Adult Community Team,Sensory Support,DIRECT PAYMENTS
http://statistics.data.gov.uk/doc/local-authority-district/00AR,London Borough of Havering,17/03/2015,1114.00,MAR15L549,Citibank Europe Plc,"Children, Adults & Housing",Learning & Achievement,Children With Disabilities,C&F Direct Payments,DIRECT PAYMENTS
http://statistics.data.gov.uk/doc/local-authority-district/00AR,London Borough of Havering,17/03/2015,5048.00,MAR15L550,Citibank Europe Plc,"Children, Adults & Housing",Adult Services,Learning Disabilities,Learning Disability Support,DIRECT PAYMENTS
http://statistics.data.gov.uk/doc/local-authority-district/00AR,London Borough of Havering,17/03/2015,5821.00,MAR15L551,Citibank Europe Plc,"Children, Adults & Housing",Adult Services,Adult Community Team,Physical Support,DIRECT PAYMENTS
http://statistics.data.gov.uk/doc/local-authority-district/00AR,London Borough of Havering,25/03/2015,20000.00,MAR15L552,Positive East,"Children, Adults & Housing",Adult Services,Adult Community Team,HIV/Aids Support,PAYMENTS TO VOLUNTARY SECTOR
http://statistics.data.gov.uk/doc/local-authority-district/00AR,London Borough of Havering,23/03/2015,2000.00,MAR15L554,Abbs Cross Academy & Arts College,"Children, Adults & Housing",Learning & Achievement,Alternative Provision including LAC education,Social Inclusion,CLIENT SUPPORT - THIRD PARTY
http://statistics.data.gov.uk/doc/local-authority-district/00AR,London Borough of Havering,17/03/2015,650.00,MAR15L556,Abbs Cross Academy & Arts College,"Children, Adults & Housing",Childrens Services,Existing Placements,Pupil Premium for L A C,STAFF DEVELOPMENT AND TRAINING
http://statistics.data.gov.uk/doc/local-authority-district/00AR,London Borough of Havering,21/03/2015,650.00,MAR15L557,Abbs Cross Academy & Arts College,"Children, Adults & Housing",Childrens Services,Existing Placements,Pupil Premium for L A C,STAFF DEVELOPMENT AND TRAINING
http://statistics.data.gov.uk/doc/local-authority-district/00AR,London Borough of Havering,11/03/2015,11360.00,MAR15L558,Abbs Cross Academy & Arts College,"Children, Adults & Housing",Learning & Achievement,ISB Other,DSG Contingency,GENERAL CONTINGENCY
http://statistics.data.gov.uk/doc/local-authority-district/00AR,London Borough of Havering,23/03/2015,2000.00,MAR15L559,Brittons Academy Trust,"Children, Adults & Housing",Learning & Achievement,Alternative Provision including LAC education,Social Inclusion,CLIENT SUPPORT - THIRD PARTY
http://statistics.data.gov.uk/doc/local-authority-district/00AR,London Borough of Havering,30/03/2015,2317.83,MAR15L561,Brittons Academy Trust,oneSource Non-Shared LBH,Asset Management,Technical Services,SS - Cheque Book Schools,RESPONSIVE REPAIRS - BUILDING
http://statistics.data.gov.uk/doc/local-authority-district/00AR,London Borough of Havering,21/03/2015,1000.00,MAR15L562,Brittons Academy Trust,"Children, Adults & Housing",Childrens Services,Existing Placements,Pupil Premium for L A C,STAFF DEVELOPMENT AND TRAINING
http://statistics.data.gov.uk/doc/local-authority-district/00AR,London Borough of Havering,17/03/2015,650.00,MAR15L563,Brittons Academy Trust,"Children, Adults & Housing",Childrens Services,Existing Placements,Pupil Premium for L A C,STAFF DEVELOPMENT AND TRAINING
http://statistics.data.gov.uk/doc/local-authority-district/00AR,London Borough of Havering,21/03/2015,650.00,MAR15L564,Brittons Academy Trust,"Children, Adults & Housing",Childrens Services,Existing Placements,Pupil Premium for L A C,STAFF DEVELOPMENT AND TRAINING
http://statistics.data.gov.uk/doc/local-authority-district/00AR,London Borough of Havering,21/03/2015,650.00,MAR15L565,Brittons Academy Trust,"Children, Adults & Housing",Childrens Services,Existing Placements,Pupil Premium for L A C,STAFF DEVELOPMENT AND TRAINING
http://statistics.data.gov.uk/doc/local-authority-district/00AR,London Borough of Havering,11/03/2015,14763.00,MAR15L568,Brittons Academy Trust,"Children, Adults & Housing",Learning & Achievement,ISB Other,DSG Contingency,GENERAL CONTINGENCY
http://statistics.data.gov.uk/doc/local-authority-district/00AR,London Borough of Havering,23/03/2015,2000.00,MAR15L569,The Coopers Company and Coborn School Academy,"Children, Adults & Housing",Learning & Achievement,Alternative Provision including LAC education,Social Inclusion,CLIENT SUPPORT - THIRD PARTY
http://statistics.data.gov.uk/doc/local-authority-district/00AR,London Borough of Havering,17/03/2015,650.00,MAR15L571,The Coopers Company and Coborn School Academy,"Children, Adults & Housing",Childrens Services,Existing Placements,Pupil Premium for L A C,STAFF DEVELOPMENT AND TRAINING
http://statistics.data.gov.uk/doc/local-authority-district/00AR,London Borough of Havering,21/03/2015,650.00,MAR15L572,The Coopers Company and Coborn School Academy,"Children, Adults & Housing",Childrens Services,Existing Placements,Pupil Premium for L A C,STAFF DEVELOPMENT AND TRAINING
http://statistics.data.gov.uk/doc/local-authority-district/00AR,London Borough of Havering,21/03/2015,650.00,MAR15L573,The Coopers Company and Coborn School Academy,"Children, Adults & Housing",Childrens Services,Existing Placements,Pupil Premium for L A C,STAFF DEVELOPMENT AND TRAINING
http://statistics.data.gov.uk/doc/local-authority-district/00AR,London Borough of Havering,17/03/2015,650.00,MAR15L574,The Coopers Company and Coborn School Academy,"Children, Adults & Housing",Childrens Services,Existing Placements,Pupil Premium for L A C,STAFF DEVELOPMENT AND TRAINING
http://statistics.data.gov.uk/doc/local-authority-district/00AR,London Borough of Havering,17/03/2015,650.00,MAR15L575,The Coopers Company and Coborn School Academy,"Children, Adults & Housing",Childrens Services,Existing Placements,Pupil Premium for L A C,STAFF DEVELOPMENT AND TRAINING
http://statistics.data.gov.uk/doc/local-authority-district/00AR,London Borough of Havering,11/03/2015,4519.00,MAR15L577,The Coopers Company and Coborn School Academy,"Children, Adults & Housing",Learning & Achievement,Alternative Provision including LAC education,Social Inclusion,CLIENT SUPPORT - THIRD PARTY
http://statistics.data.gov.uk/doc/local-authority-district/00AR,London Borough of Havering,11/03/2015,12095.00,MAR15L578,The Coopers Company and Coborn School Academy,"Children, Adults & Housing",Learning & Achievement,ISB Other,DSG Contingency,GENERAL CONTINGENCY
http://statistics.data.gov.uk/doc/local-authority-district/00AR,London Borough of Havering,04/03/2015,11578.96,MAR15L579,**Redacted Personal Data**,"Children, Adults & Housing",Housing (HRA),Director Of Property Services (HRA),Director Of Property Services (HRA),CONSULTANCY FEES
http://statistics.data.gov.uk/doc/local-authority-district/00AR,London Borough of Havering,04/03/2015,4890.87,MAR15L580,**Redacted Personal Data**,"Children, Adults & Housing",Housing (HRA),Director Of Property Services (HRA),Director Of Property Services (HRA),CONSULTANCY FEES
http://statistics.data.gov.uk/doc/local-authority-district/00AR,London Borough of Havering,24/03/2015,3448.30,MAR15L581,Orange Payment Processing,oneSource Shared,oS ICT Services,oS Unified Communications,Corporate Telephone Systems,MOBILE PHONE COSTS
http://statistics.data.gov.uk/doc/local-authority-district/00AR,London Borough of Havering,24/03/2015,1358.70,MAR15L582,Orange Payment Processing,oneSource Shared,oS ICT Services,oS Unified Communications,Corporate Telephone Systems,MOBILE PHONE COSTS
http://statistics.data.gov.uk/doc/local-authority-district/00AR,London Borough of Havering,24/03/2015,2402.86,MAR15L583,Orange Payment Processing,oneSource Shared,oS ICT Services,oS Unified Communications,Corporate Telephone Systems,MOBILE PHONE COSTS
http://statistics.data.gov.uk/doc/local-authority-district/00AR,London Borough of Havering,14/03/2015,98.93,MAR15L584,Brake Bros Ltd,"Children, Adults & Housing",Learning & Achievement,Borough Catering,Catering - Hospitality Plus,CATERING AND VENDING SUPPLIES
http://statistics.data.gov.uk/doc/local-authority-district/00AR,London Borough of Havering,14/03/2015,310.58,MAR15L585,Brake Bros Ltd,"Children, Adults & Housing",Learning & Achievement,Borough Catering,Catering - Specials - Corbets Tey,CATERING AND VENDING SUPPLIES
http://statistics.data.gov.uk/doc/local-authority-district/00AR,London Borough of Havering,14/03/2015,332.61,MAR15L586,Brake Bros Ltd,"Children, Adults & Housing",Learning & Achievement,Borough Catering,Catering - Dame Tipping,CATERING AND VENDING SUPPLIES
http://statistics.data.gov.uk/doc/local-authority-district/00AR,London Borough of Havering,14/03/2015,396.98,MAR15L587,Brake Bros Ltd,"Children, Adults & Housing",Learning & Achievement,Borough Catering,Catering - Specials - Ravensbourne,CATERING AND VENDING SUPPLIES
http://statistics.data.gov.uk/doc/local-authority-district/00AR,London Borough of Havering,14/03/2015,502.53,MAR15L588,Brake Bros Ltd,"Children, Adults & Housing",Learning & Achievement,Borough Catering,Catering - Specials - Dycorts,CATERING AND VENDING SUPPLIES
http://statistics.data.gov.uk/doc/local-authority-district/00AR,London Borough of Havering,14/03/2015,541.60,MAR15L589,Brake Bros Ltd,"Children, Adults & Housing",Learning & Achievement,Borough Catering,Catering - Town Hall,CATERING AND VENDING SUPPLIES
http://statistics.data.gov.uk/doc/local-authority-district/00AR,London Borough of Havering,14/03/2015,639.03,MAR15L590,Brake Bros Ltd,"Children, Adults & Housing",Learning & Achievement,Borough Catering,Catering - R J Mitchell,CATERING AND VENDING SUPPLIES
http://statistics.data.gov.uk/doc/local-authority-district/00AR,London Borough of Havering,14/03/2015,764.39,MAR15L591,Brake Bros Ltd,"Children, Adults & Housing",Learning & Achievement,Borough Catering,Catering - Oglethorpe,CATERING AND VENDING SUPPLIES
http://statistics.data.gov.uk/doc/local-authority-district/00AR,London Borough of Havering,14/03/2015,767.00,MAR15L592,Brake Bros Ltd,"Children, Adults & Housing",Learning & Achievement,Borough Catering,Catering - Scotts,CATERING AND VENDING SUPPLIES
http://statistics.data.gov.uk/doc/local-authority-district/00AR,London Borough of Havering,14/03/2015,809.39,MAR15L593,Brake Bros Ltd,"Children, Adults & Housing",Learning & Achievement,Borough Catering,Catering - La Salette,CATERING AND VENDING SUPPLIES
http://statistics.data.gov.uk/doc/local-authority-district/00AR,London Borough of Havering,14/03/2015,817.43,MAR15L594,Brake Bros Ltd,"Children, Adults & Housing",Learning & Achievement,Borough Catering,Catering - Elm Park,CATERING AND VENDING SUPPLIES
http://statistics.data.gov.uk/doc/local-authority-district/00AR,London Borough of Havering,14/03/2015,822.85,MAR15L595,Brake Bros Ltd,"Children, Adults & Housing",Learning & Achievement,Borough Catering,Catering - Hacton,CATERING AND VENDING SUPPLIES
http://statistics.data.gov.uk/doc/local-authority-district/00AR,London Borough of Havering,14/03/2015,836.31,MAR15L596,Brake Bros Ltd,"Children, Adults & Housing",Learning & Achievement,Borough Catering,Catering - Suttons,CATERING AND VENDING SUPPLIES
http://statistics.data.gov.uk/doc/local-authority-district/00AR,London Borough of Havering,14/03/2015,865.89,MAR15L597,Brake Bros Ltd,"Children, Adults & Housing",Learning & Achievement,Borough Catering,Catering - St Peters,CATERING AND VENDING SUPPLIES
http://statistics.data.gov.uk/doc/local-authority-district/00AR,London Borough of Havering,14/03/2015,900.18,MAR15L598,Brake Bros Ltd,"Children, Adults & Housing",Learning & Achievement,Borough Catering,Catering - St Albans,CATERING AND VENDING SUPPLIES
http://statistics.data.gov.uk/doc/local-authority-district/00AR,London Borough of Havering,14/03/2015,1034.37,MAR15L599,Brake Bros Ltd,"Children, Adults & Housing",Learning & Achievement,Borough Catering,Catering - St Bede's Catholic Primary School,CATERING AND VENDING SUPPLIES
http://statistics.data.gov.uk/doc/local-authority-district/00AR,London Borough of Havering,14/03/2015,1140.16,MAR15L600,Brake Bros Ltd,"Children, Adults & Housing",Learning & Achievement,Borough Catering,Catering - St Josephs,CATERING AND VENDING SUPPLIES
http://statistics.data.gov.uk/doc/local-authority-district/00AR,London Borough of Havering,14/03/2015,1151.27,MAR15L601,Brake Bros Ltd,"Children, Adults & Housing",Learning & Achievement,Borough Catering,Catering - Hylands,CATERING AND VENDING SUPPLIES
http://statistics.data.gov.uk/doc/local-authority-district/00AR,London Borough of Havering,14/03/2015,1156.43,MAR15L602,Brake Bros Ltd,"Children, Adults & Housing",Learning & Achievement,Borough Catering,Catering - Whybridge,CATERING AND VENDING SUPPLIES
http://statistics.data.gov.uk/doc/local-authority-district/00AR,London Borough of Havering,14/03/2015,1202.96,MAR15L603,Brake Bros Ltd,"Children, Adults & Housing",Learning & Achievement,Borough Catering,Catering - Benhurst,CATERING AND VENDING SUPPLIES
http://statistics.data.gov.uk/doc/local-authority-district/00AR,London Borough of Havering,14/03/2015,1235.08,MAR15L604,Brake Bros Ltd,"Children, Adults & Housing",Learning & Achievement,Borough Catering,Catering - Gidea Park,CATERING AND VENDING SUPPLIES
http://statistics.data.gov.uk/doc/local-authority-district/00AR,London Borough of Havering,14/03/2015,1240.70,MAR15L605,Brake Bros Ltd,"Children, Adults & Housing",Learning & Achievement,Borough Catering,Catering - Wykeham,CATERING AND VENDING SUPPLIES
http://statistics.data.gov.uk/doc/local-authority-district/00AR,London Borough of Havering,14/03/2015,1261.99,MAR15L606,Brake Bros Ltd,"Children, Adults & Housing",Learning & Achievement,Borough Catering,Catering - Harold Court,CATERING AND VENDING SUPPLIES
http://statistics.data.gov.uk/doc/local-authority-district/00AR,London Borough of Havering,14/03/2015,1263.71,MAR15L607,Brake Bros Ltd,"Children, Adults & Housing",Learning & Achievement,Borough Catering,Catering - Harold Wood,CATERING AND VENDING SUPPLIES
http://statistics.data.gov.uk/doc/local-authority-district/00AR,London Borough of Havering,14/03/2015,1285.89,MAR15L608,Brake Bros Ltd,"Children, Adults & Housing",Learning & Achievement,Borough Catering,Catering - St Patricks,CATERING AND VENDING SUPPLIES
http://statistics.data.gov.uk/doc/local-authority-district/00AR,London Borough of Havering,14/03/2015,1287.30,MAR15L609,Brake Bros Ltd,"Children, Adults & Housing",Learning & Achievement,Borough Catering,Catering - Newtons,CATERING AND VENDING SUPPLIES
http://statistics.data.gov.uk/doc/local-authority-district/00AR,London Borough of Havering,14/03/2015,1313.92,MAR15L610,Brake Bros Ltd,"Children, Adults & Housing",Learning & Achievement,Borough Catering,Catering - Pyrgo Priory,CATERING AND VENDING SUPPLIES
http://statistics.data.gov.uk/doc/local-authority-district/00AR,London Borough of Havering,14/03/2015,1364.42,MAR15L611,Brake Bros Ltd,"Children, Adults & Housing",Learning & Achievement,Borough Catering,Catering - Mawney,CATERING AND VENDING SUPPLIES
http://statistics.data.gov.uk/doc/local-authority-district/00AR,London Borough of Havering,14/03/2015,1376.49,MAR15L612,Brake Bros Ltd,"Children, Adults & Housing",Learning & Achievement,Borough Catering,Catering - St Ursulas,CATERING AND VENDING SUPPLIES
http://statistics.data.gov.uk/doc/local-authority-district/00AR,London Borough of Havering,14/03/2015,1379.66,MAR15L613,Brake Bros Ltd,"Children, Adults & Housing",Learning & Achievement,Borough Catering,Catering - St Marys,CATERING AND VENDING SUPPLIES
http://statistics.data.gov.uk/doc/local-authority-district/00AR,London Borough of Havering,14/03/2015,1392.82,MAR15L614,Brake Bros Ltd,"Children, Adults & Housing",Learning & Achievement,Borough Catering,Catering - Rise Park,CATERING AND VENDING SUPPLIES
http://statistics.data.gov.uk/doc/local-authority-district/00AR,London Borough of Havering,14/03/2015,1401.94,MAR15L615,Brake Bros Ltd,"Children, Adults & Housing",Learning & Achievement,Borough Catering,Catering - Brookside,CATERING AND VENDING SUPPLIES
http://statistics.data.gov.uk/doc/local-authority-district/00AR,London Borough of Havering,14/03/2015,1414.02,MAR15L616,Brake Bros Ltd,"Children, Adults & Housing",Learning & Achievement,Borough Catering,Catering - Ardleigh Green,CATERING AND VENDING SUPPLIES
http://statistics.data.gov.uk/doc/local-authority-district/00AR,London Borough of Havering,14/03/2015,1461.82,MAR15L617,Brake Bros Ltd,"Children, Adults & Housing",Learning & Achievement,Borough Catering,Catering - Broadford,CATERING AND VENDING SUPPLIES
http://statistics.data.gov.uk/doc/local-authority-district/00AR,London Borough of Havering,14/03/2015,1518.52,MAR15L618,Brake Bros Ltd,"Children, Adults & Housing",Learning & Achievement,Borough Catering,Catering - Bower Park,CATERING AND VENDING SUPPLIES
http://statistics.data.gov.uk/doc/local-authority-district/00AR,London Borough of Havering,14/03/2015,1567.97,MAR15L619,Brake Bros Ltd,"Children, Adults & Housing",Learning & Achievement,Borough Catering,Catering - Nelmes,CATERING AND VENDING SUPPLIES
http://statistics.data.gov.uk/doc/local-authority-district/00AR,London Borough of Havering,14/03/2015,1596.12,MAR15L620,Brake Bros Ltd,"Children, Adults & Housing",Learning & Achievement,Borough Catering,Catering - Langtons,CATERING AND VENDING SUPPLIES
http://statistics.data.gov.uk/doc/local-authority-district/00AR,London Borough of Havering,14/03/2015,1642.22,MAR15L621,Brake Bros Ltd,"Children, Adults & Housing",Learning & Achievement,Borough Catering,Catering - Crownfield,CATERING AND VENDING SUPPLIES
http://statistics.data.gov.uk/doc/local-authority-district/00AR,London Borough of Havering,14/03/2015,1682.54,MAR15L622,Brake Bros Ltd,"Children, Adults & Housing",Learning & Achievement,Borough Catering,Catering - Clockhouse,CATERING AND VENDING SUPPLIES
http://statistics.data.gov.uk/doc/local-authority-district/00AR,London Borough of Havering,14/03/2015,1684.96,MAR15L623,Brake Bros Ltd,"Children, Adults & Housing",Learning & Achievement,Borough Catering,Catering - Branfil,CATERING AND VENDING SUPPLIES
http://statistics.data.gov.uk/doc/local-authority-district/00AR,London Borough of Havering,14/03/2015,1752.33,MAR15L624,Brake Bros Ltd,"Children, Adults & Housing",Learning & Achievement,Borough Catering,Catering - Scargill,CATERING AND VENDING SUPPLIES
http://statistics.data.gov.uk/doc/local-authority-district/00AR,London Borough of Havering,14/03/2015,1777.52,MAR15L625,Brake Bros Ltd,"Children, Adults & Housing",Learning & Achievement,Borough Catering,Catering - Parsonage Farm,CATERING AND VENDING SUPPLIES
http://statistics.data.gov.uk/doc/local-authority-district/00AR,London Borough of Havering,14/03/2015,1829.24,MAR15L626,Brake Bros Ltd,"Children, Adults & Housing",Learning & Achievement,Borough Catering,Catering - Redden Court,CATERING AND VENDING SUPPLIES
http://statistics.data.gov.uk/doc/local-authority-district/00AR,London Borough of Havering,14/03/2015,1835.30,MAR15L627,Brake Bros Ltd,"Children, Adults & Housing",Learning & Achievement,Borough Catering,Catering - Rainham,CATERING AND VENDING SUPPLIES
http://statistics.data.gov.uk/doc/local-authority-district/00AR,London Borough of Havering,14/03/2015,1881.93,MAR15L628,Brake Bros Ltd,"Children, Adults & Housing",Learning & Achievement,Borough Catering,Catering - Crowlands,CATERING AND VENDING SUPPLIES
http://statistics.data.gov.uk/doc/local-authority-district/00AR,London Borough of Havering,14/03/2015,1921.10,MAR15L629,Brake Bros Ltd,"Children, Adults & Housing",Learning & Achievement,Borough Catering,Catering - Engayne,CATERING AND VENDING SUPPLIES
http://statistics.data.gov.uk/doc/local-authority-district/00AR,London Borough of Havering,14/03/2015,1954.07,MAR15L630,Brake Bros Ltd,"Children, Adults & Housing",Learning & Achievement,Borough Catering,Catering - Towers,CATERING AND VENDING SUPPLIES
http://statistics.data.gov.uk/doc/local-authority-district/00AR,London Borough of Havering,14/03/2015,1955.94,MAR15L631,Brake Bros Ltd,"Children, Adults & Housing",Learning & Achievement,Borough Catering,Catering - Brittons,CATERING AND VENDING SUPPLIES
http://statistics.data.gov.uk/doc/local-authority-district/00AR,London Borough of Havering,14/03/2015,1998.86,MAR15L632,Brake Bros Ltd,"Children, Adults & Housing",Learning & Achievement,Borough Catering,Catering - Sanders Draper,CATERING AND VENDING SUPPLIES
http://statistics.data.gov.uk/doc/local-authority-district/00AR,London Borough of Havering,14/03/2015,2086.40,MAR15L633,Brake Bros Ltd,"Children, Adults & Housing",Learning & Achievement,Borough Catering,Catering - Hilldene,CATERING AND VENDING SUPPLIES
http://statistics.data.gov.uk/doc/local-authority-district/00AR,London Borough of Havering,14/03/2015,2194.21,MAR15L634,Brake Bros Ltd,"Children, Adults & Housing",Learning & Achievement,Borough Catering,Catering - St Edwards Primary,CATERING AND VENDING SUPPLIES
http://statistics.data.gov.uk/doc/local-authority-district/00AR,London Borough of Havering,14/03/2015,2280.97,MAR15L635,Brake Bros Ltd,"Children, Adults & Housing",Learning & Achievement,Borough Catering,Catering - Parklands,CATERING AND VENDING SUPPLIES
http://statistics.data.gov.uk/doc/local-authority-district/00AR,London Borough of Havering,14/03/2015,2326.29,MAR15L636,Brake Bros Ltd,"Children, Adults & Housing",Learning & Achievement,Borough Catering,Catering - Mead,CATERING AND VENDING SUPPLIES
http://statistics.data.gov.uk/doc/local-authority-district/00AR,London Borough of Havering,14/03/2015,2401.12,MAR15L637,Brake Bros Ltd,"Children, Adults & Housing",Learning & Achievement,Borough Catering,Catering - Squirrels Heath,CATERING AND VENDING SUPPLIES
http://statistics.data.gov.uk/doc/local-authority-district/00AR,London Borough of Havering,14/03/2015,2603.84,MAR15L638,Brake Bros Ltd,"Children, Adults & Housing",Learning & Achievement,Borough Catering,Catering - Royal Liberty,CATERING AND VENDING SUPPLIES
http://statistics.data.gov.uk/doc/local-authority-district/00AR,London Borough of Havering,14/03/2015,2693.65,MAR15L639,Brake Bros Ltd,"Children, Adults & Housing",Learning & Achievement,Borough Catering,Catering - Upminster,CATERING AND VENDING SUPPLIES
http://statistics.data.gov.uk/doc/local-authority-district/00AR,London Borough of Havering,14/03/2015,3642.84,MAR15L640,Brake Bros Ltd,"Children, Adults & Housing",Learning & Achievement,Borough Catering,Catering - Frances Bardsley,CATERING AND VENDING SUPPLIES
http://statistics.data.gov.uk/doc/local-authority-district/00AR,London Borough of Havering,14/03/2015,5042.81,MAR15L641,Brake Bros Ltd,"Children, Adults & Housing",Learning & Achievement,Borough Catering,Catering - Hall Mead,CATERING AND VENDING SUPPLIES
http://statistics.data.gov.uk/doc/local-authority-district/00AR,London Borough of Havering,30/03/2015,161.17,MAR15L642,Brake Bros Ltd,"Children, Adults & Housing",Learning & Achievement,Borough Catering,Catering - Hospitality Plus,CATERING AND VENDING SUPPLIES
http://statistics.data.gov.uk/doc/local-authority-district/00AR,London Borough of Havering,30/03/2015,175.67,MAR15L643,Brake Bros Ltd,"Children, Adults & Housing",Learning & Achievement,Borough Catering,Catering - Dame Tipping,CATERING AND VENDING SUPPLIES
http://statistics.data.gov.uk/doc/local-authority-district/00AR,London Borough of Havering,30/03/2015,189.36,MAR15L644,Brake Bros Ltd,"Children, Adults & Housing",Learning & Achievement,Borough Catering,Catering - Specials - Ravensbourne,CATERING AND VENDING SUPPLIES
http://statistics.data.gov.uk/doc/local-authority-district/00AR,London Borough of Havering,30/03/2015,204.83,MAR15L645,Brake Bros Ltd,"Children, Adults & Housing",Learning & Achievement,Borough Catering,Catering - Specials - Corbets Tey,CATERING AND VENDING SUPPLIES
http://statistics.data.gov.uk/doc/local-authority-district/00AR,London Borough of Havering,30/03/2015,411.46,MAR15L646,Brake Bros Ltd,"Children, Adults & Housing",Learning & Achievement,Borough Catering,Catering - R J Mitchell,CATERING AND VENDING SUPPLIES
http://statistics.data.gov.uk/doc/local-authority-district/00AR,London Borough of Havering,30/03/2015,439.00,MAR15L647,Brake Bros Ltd,"Children, Adults & Housing",Learning & Achievement,Borough Catering,Catering - Specials - Dycorts,CATERING AND VENDING SUPPLIES
http://statistics.data.gov.uk/doc/local-authority-district/00AR,London Borough of Havering,30/03/2015,455.96,MAR15L648,Brake Bros Ltd,"Children, Adults & Housing",Learning & Achievement,Borough Catering,Catering - Town Hall,CATERING AND VENDING SUPPLIES
http://statistics.data.gov.uk/doc/local-authority-district/00AR,London Borough of Havering,30/03/2015,491.73,MAR15L649,Brake Bros Ltd,"Children, Adults & Housing",Learning & Achievement,Borough Catering,Catering - Scotts,CATERING AND VENDING SUPPLIES
http://statistics.data.gov.uk/doc/local-authority-district/00AR,London Borough of Havering,30/03/2015,567.55,MAR15L650,Brake Bros Ltd,"Children, Adults & Housing",Learning & Achievement,Borough Catering,Catering - La Salette,CATERING AND VENDING SUPPLIES
http://statistics.data.gov.uk/doc/local-authority-district/00AR,London Borough of Havering,30/03/2015,620.99,MAR15L651,Brake Bros Ltd,"Children, Adults & Housing",Learning & Achievement,Borough Catering,Catering - Suttons,CATERING AND VENDING SUPPLIES
http://statistics.data.gov.uk/doc/local-authority-district/00AR,London Borough of Havering,30/03/2015,638.30,MAR15L652,Brake Bros Ltd,"Children, Adults & Housing",Learning & Achievement,Borough Catering,Catering - St Albans,CATERING AND VENDING SUPPLIES
http://statistics.data.gov.uk/doc/local-authority-district/00AR,London Borough of Havering,30/03/2015,674.60,MAR15L653,Brake Bros Ltd,"Children, Adults & Housing",Learning & Achievement,Borough Catering,Catering - St Bede's Catholic Primary School,CATERING AND VENDING SUPPLIES
http://statistics.data.gov.uk/doc/local-authority-district/00AR,London Borough of Havering,30/03/2015,679.45,MAR15L654,Brake Bros Ltd,"Children, Adults & Housing",Learning & Achievement,Borough Catering,Catering - Oglethorpe,CATERING AND VENDING SUPPLIES
http://statistics.data.gov.uk/doc/local-authority-district/00AR,London Borough of Havering,30/03/2015,682.54,MAR15L655,Brake Bros Ltd,"Children, Adults & Housing",Learning & Achievement,Borough Catering,Catering - Elm Park,CATERING AND VENDING SUPPLIES
http://statistics.data.gov.uk/doc/local-authority-district/00AR,London Borough of Havering,30/03/2015,749.30,MAR15L656,Brake Bros Ltd,"Children, Adults & Housing",Learning & Achievement,Borough Catering,Catering - Harold Wood,CATERING AND VENDING SUPPLIES
http://statistics.data.gov.uk/doc/local-authority-district/00AR,London Borough of Havering,30/03/2015,762.76,MAR15L657,Brake Bros Ltd,"Children, Adults & Housing",Learning & Achievement,Borough Catering,Catering - St Ursulas,CATERING AND VENDING SUPPLIES
http://statistics.data.gov.uk/doc/local-authority-district/00AR,London Borough of Havering,30/03/2015,781.24,MAR15L658,Brake Bros Ltd,"Children, Adults & Housing",Learning & Achievement,Borough Catering,Catering - Hacton,CATERING AND VENDING SUPPLIES
http://statistics.data.gov.uk/doc/local-authority-district/00AR,London Borough of Havering,30/03/2015,786.46,MAR15L659,Brake Bros Ltd,"Children, Adults & Housing",Learning & Achievement,Borough Catering,Catering - St Marys,CATERING AND VENDING SUPPLIES
http://statistics.data.gov.uk/doc/local-authority-district/00AR,London Borough of Havering,30/03/2015,810.32,MAR15L660,Brake Bros Ltd,"Children, Adults & Housing",Learning & Achievement,Borough Catering,Catering - St Peters,CATERING AND VENDING SUPPLIES
http://statistics.data.gov.uk/doc/local-authority-district/00AR,London Borough of Havering,30/03/2015,818.94,MAR15L661,Brake Bros Ltd,"Children, Adults & Housing",Learning & Achievement,Borough Catering,Catering - Brookside,CATERING AND VENDING SUPPLIES
http://statistics.data.gov.uk/doc/local-authority-district/00AR,London Borough of Havering,30/03/2015,822.28,MAR15L662,Brake Bros Ltd,"Children, Adults & Housing",Learning & Achievement,Borough Catering,Catering - Whybridge,CATERING AND VENDING SUPPLIES
http://statistics.data.gov.uk/doc/local-authority-district/00AR,London Borough of Havering,30/03/2015,833.37,MAR15L663,Brake Bros Ltd,"Children, Adults & Housing",Learning & Achievement,Borough Catering,Catering - St Patricks,CATERING AND VENDING SUPPLIES
http://statistics.data.gov.uk/doc/local-authority-district/00AR,London Borough of Havering,30/03/2015,843.61,MAR15L664,Brake Bros Ltd,"Children, Adults & Housing",Learning & Achievement,Borough Catering,Catering - Benhurst,CATERING AND VENDING SUPPLIES
http://statistics.data.gov.uk/doc/local-authority-district/00AR,London Borough of Havering,30/03/2015,851.89,MAR15L665,Brake Bros Ltd,"Children, Adults & Housing",Learning & Achievement,Borough Catering,Catering - Harold Court,CATERING AND VENDING SUPPLIES
http://statistics.data.gov.uk/doc/local-authority-district/00AR,London Borough of Havering,30/03/2015,854.51,MAR15L666,Brake Bros Ltd,"Children, Adults & Housing",Learning & Achievement,Borough Catering,Catering - St Josephs,CATERING AND VENDING SUPPLIES
http://statistics.data.gov.uk/doc/local-authority-district/00AR,London Borough of Havering,30/03/2015,904.50,MAR15L667,Brake Bros Ltd,"Children, Adults & Housing",Learning & Achievement,Borough Catering,Catering - Gidea Park,CATERING AND VENDING SUPPLIES
http://statistics.data.gov.uk/doc/local-authority-district/00AR,London Borough of Havering,30/03/2015,929.67,MAR15L668,Brake Bros Ltd,"Children, Adults & Housing",Learning & Achievement,Borough Catering,Catering - Newtons,CATERING AND VENDING SUPPLIES
http://statistics.data.gov.uk/doc/local-authority-district/00AR,London Borough of Havering,30/03/2015,957.88,MAR15L669,Brake Bros Ltd,"Children, Adults & Housing",Learning & Achievement,Borough Catering,Catering - Wykeham,CATERING AND VENDING SUPPLIES
http://statistics.data.gov.uk/doc/local-authority-district/00AR,London Borough of Havering,30/03/2015,972.50,MAR15L670,Brake Bros Ltd,"Children, Adults & Housing",Learning & Achievement,Borough Catering,Catering - Bower Park,CATERING AND VENDING SUPPLIES
http://statistics.data.gov.uk/doc/local-authority-district/00AR,London Borough of Havering,30/03/2015,973.30,MAR15L671,Brake Bros Ltd,"Children, Adults & Housing",Learning & Achievement,Borough Catering,Catering - Mawney,CATERING AND VENDING SUPPLIES
http://statistics.data.gov.uk/doc/local-authority-district/00AR,London Borough of Havering,30/03/2015,990.06,MAR15L672,Brake Bros Ltd,"Children, Adults & Housing",Learning & Achievement,Borough Catering,Catering - Scargill,CATERING AND VENDING SUPPLIES
http://statistics.data.gov.uk/doc/local-authority-district/00AR,London Borough of Havering,30/03/2015,1001.56,MAR15L673,Brake Bros Ltd,"Children, Adults & Housing",Learning & Achievement,Borough Catering,Catering - Hylands,CATERING AND VENDING SUPPLIES
http://statistics.data.gov.uk/doc/local-authority-district/00AR,London Borough of Havering,30/03/2015,1023.15,MAR15L674,Brake Bros Ltd,"Children, Adults & Housing",Learning & Achievement,Borough Catering,Catering - Broadford,CATERING AND VENDING SUPPLIES
http://statistics.data.gov.uk/doc/local-authority-district/00AR,London Borough of Havering,30/03/2015,1031.24,MAR15L675,Brake Bros Ltd,"Children, Adults & Housing",Learning & Achievement,Borough Catering,Catering - Pyrgo Priory,CATERING AND VENDING SUPPLIES
http://statistics.data.gov.uk/doc/local-authority-district/00AR,London Borough of Havering,30/03/2015,1034.64,MAR15L676,Brake Bros Ltd,"Children, Adults & Housing",Learning & Achievement,Borough Catering,Catering - Rise Park,CATERING AND VENDING SUPPLIES
http://statistics.data.gov.uk/doc/local-authority-district/00AR,London Borough of Havering,30/03/2015,1041.11,MAR15L677,Brake Bros Ltd,"Children, Adults & Housing",Learning & Achievement,Borough Catering,Catering - Ardleigh Green,CATERING AND VENDING SUPPLIES
http://statistics.data.gov.uk/doc/local-authority-district/00AR,London Borough of Havering,30/03/2015,1042.31,MAR15L678,Brake Bros Ltd,"Children, Adults & Housing",Learning & Achievement,Borough Catering,Catering - Parsonage Farm,CATERING AND VENDING SUPPLIES
http://statistics.data.gov.uk/doc/local-authority-district/00AR,London Borough of Havering,30/03/2015,1049.07,MAR15L679,Brake Bros Ltd,"Children, Adults & Housing",Learning & Achievement,Borough Catering,Catering - Branfil,CATERING AND VENDING SUPPLIES
http://statistics.data.gov.uk/doc/local-authority-district/00AR,London Borough of Havering,30/03/2015,1135.37,MAR15L680,Brake Bros Ltd,"Children, Adults & Housing",Learning & Achievement,Borough Catering,Catering - Nelmes,CATERING AND VENDING SUPPLIES
http://statistics.data.gov.uk/doc/local-authority-district/00AR,London Borough of Havering,30/03/2015,1258.00,MAR15L681,Brake Bros Ltd,"Children, Adults & Housing",Learning & Achievement,Borough Catering,Catering - Langtons,CATERING AND VENDING SUPPLIES
http://statistics.data.gov.uk/doc/local-authority-district/00AR,London Borough of Havering,30/03/2015,1279.81,MAR15L682,Brake Bros Ltd,"Children, Adults & Housing",Learning & Achievement,Borough Catering,Catering - Towers,CATERING AND VENDING SUPPLIES
http://statistics.data.gov.uk/doc/local-authority-district/00AR,London Borough of Havering,30/03/2015,1286.19,MAR15L683,Brake Bros Ltd,"Children, Adults & Housing",Learning & Achievement,Borough Catering,Catering - Redden Court,CATERING AND VENDING SUPPLIES
http://statistics.data.gov.uk/doc/local-authority-district/00AR,London Borough of Havering,30/03/2015,1301.91,MAR15L684,Brake Bros Ltd,"Children, Adults & Housing",Learning & Achievement,Borough Catering,Catering - Rainham,CATERING AND VENDING SUPPLIES
http://statistics.data.gov.uk/doc/local-authority-district/00AR,London Borough of Havering,30/03/2015,1305.91,MAR15L685,Brake Bros Ltd,"Children, Adults & Housing",Learning & Achievement,Borough Catering,Catering - Engayne,CATERING AND VENDING SUPPLIES
http://statistics.data.gov.uk/doc/local-authority-district/00AR,London Borough of Havering,30/03/2015,1346.64,MAR15L686,Brake Bros Ltd,"Children, Adults & Housing",Learning & Achievement,Borough Catering,Catering - Brittons,CATERING AND VENDING SUPPLIES
http://statistics.data.gov.uk/doc/local-authority-district/00AR,London Borough of Havering,30/03/2015,1364.90,MAR15L687,Brake Bros Ltd,"Children, Adults & Housing",Learning & Achievement,Borough Catering,Catering - Hilldene,CATERING AND VENDING SUPPLIES
http://statistics.data.gov.uk/doc/local-authority-district/00AR,London Borough of Havering,30/03/2015,1379.78,MAR15L688,Brake Bros Ltd,"Children, Adults & Housing",Learning & Achievement,Borough Catering,Catering - St Edwards Primary,CATERING AND VENDING SUPPLIES
http://statistics.data.gov.uk/doc/local-authority-district/00AR,London Borough of Havering,30/03/2015,1391.03,MAR15L689,Brake Bros Ltd,"Children, Adults & Housing",Learning & Achievement,Borough Catering,Catering - Parklands,CATERING AND VENDING SUPPLIES
http://statistics.data.gov.uk/doc/local-authority-district/00AR,London Borough of Havering,30/03/2015,1485.56,MAR15L690,Brake Bros Ltd,"Children, Adults & Housing",Learning & Achievement,Borough Catering,Catering - Upminster,CATERING AND VENDING SUPPLIES
http://statistics.data.gov.uk/doc/local-authority-district/00AR,London Borough of Havering,30/03/2015,1515.86,MAR15L691,Brake Bros Ltd,"Children, Adults & Housing",Learning & Achievement,Borough Catering,Catering - Crowlands,CATERING AND VENDING SUPPLIES
http://statistics.data.gov.uk/doc/local-authority-district/00AR,London Borough of Havering,30/03/2015,1566.11,MAR15L692,Brake Bros Ltd,"Children, Adults & Housing",Learning & Achievement,Borough Catering,Catering - Squirrels Heath,CATERING AND VENDING SUPPLIES
http://statistics.data.gov.uk/doc/local-authority-district/00AR,London Borough of Havering,30/03/2015,1582.98,MAR15L693,Brake Bros Ltd,"Children, Adults & Housing",Learning & Achievement,Borough Catering,Catering - Mead,CATERING AND VENDING SUPPLIES
http://statistics.data.gov.uk/doc/local-authority-district/00AR,London Borough of Havering,30/03/2015,1735.63,MAR15L694,Brake Bros Ltd,"Children, Adults & Housing",Learning & Achievement,Borough Catering,Catering - Royal Liberty,CATERING AND VENDING SUPPLIES
http://statistics.data.gov.uk/doc/local-authority-district/00AR,London Borough of Havering,30/03/2015,1797.62,MAR15L695,Brake Bros Ltd,"Children, Adults & Housing",Learning & Achievement,Borough Catering,Catering - Sanders Draper,CATERING AND VENDING SUPPLIES
http://statistics.data.gov.uk/doc/local-authority-district/00AR,London Borough of Havering,30/03/2015,2159.38,MAR15L696,Brake Bros Ltd,"Children, Adults & Housing",Learning & Achievement,Borough Catering,Catering - Crownfield,CATERING AND VENDING SUPPLIES
http://statistics.data.gov.uk/doc/local-authority-district/00AR,London Borough of Havering,30/03/2015,2746.87,MAR15L697,Brake Bros Ltd,"Children, Adults & Housing",Learning & Achievement,Borough Catering,Catering - Frances Bardsley,CATERING AND VENDING SUPPLIES
http://statistics.data.gov.uk/doc/local-authority-district/00AR,London Borough of Havering,30/03/2015,4179.41,MAR15L698,Brake Bros Ltd,"Children, Adults & Housing",Learning & Achievement,Borough Catering,Catering - Hall Mead,CATERING AND VENDING SUPPLIES
http://statistics.data.gov.uk/doc/local-authority-district/00AR,London Borough of Havering,30/03/2015,67.25,MAR15L699,Thomas Ridley & Sons Ltd,"Children, Adults & Housing",Learning & Achievement,Borough Catering,Catering - Hospitality Plus,CATERING AND VENDING SUPPLIES
http://statistics.data.gov.uk/doc/local-authority-district/00AR,London Borough of Havering,30/03/2015,82.52,MAR15L700,Thomas Ridley & Sons Ltd,"Children, Adults & Housing",Learning & Achievement,Borough Catering,Catering - Specials - Dycorts,CATERING AND VENDING SUPPLIES
http://statistics.data.gov.uk/doc/local-authority-district/00AR,London Borough of Havering,30/03/2015,146.71,MAR15L701,Thomas Ridley & Sons Ltd,"Children, Adults & Housing",Learning & Achievement,Borough Catering,Catering - Specials - Corbets Tey,CATERING AND VENDING SUPPLIES
http://statistics.data.gov.uk/doc/local-authority-district/00AR,London Borough of Havering,30/03/2015,216.04,MAR15L702,Thomas Ridley & Sons Ltd,"Children, Adults & Housing",Learning & Achievement,Borough Catering,Catering - Specials - Ravensbourne,CATERING AND VENDING SUPPLIES
http://statistics.data.gov.uk/doc/local-authority-district/00AR,London Borough of Havering,30/03/2015,248.04,MAR15L703,Thomas Ridley & Sons Ltd,"Children, Adults & Housing",Learning & Achievement,Borough Catering,Catering - St Josephs,CATERING AND VENDING SUPPLIES
http://statistics.data.gov.uk/doc/local-authority-district/00AR,London Borough of Havering,30/03/2015,277.66,MAR15L704,Thomas Ridley & Sons Ltd,"Children, Adults & Housing",Learning & Achievement,Borough Catering,Catering - Dame Tipping,CATERING AND VENDING SUPPLIES
http://statistics.data.gov.uk/doc/local-authority-district/00AR,London Borough of Havering,30/03/2015,311.07,MAR15L705,Thomas Ridley & Sons Ltd,"Children, Adults & Housing",Learning & Achievement,Borough Catering,Catering - Suttons,CATERING AND VENDING SUPPLIES
http://statistics.data.gov.uk/doc/local-authority-district/00AR,London Borough of Havering,30/03/2015,315.58,MAR15L706,Thomas Ridley & Sons Ltd,"Children, Adults & Housing",Learning & Achievement,Borough Catering,Catering - R J Mitchell,CATERING AND VENDING SUPPLIES
http://statistics.data.gov.uk/doc/local-authority-district/00AR,London Borough of Havering,30/03/2015,358.11,MAR15L707,Thomas Ridley & Sons Ltd,"Children, Adults & Housing",Learning & Achievement,Borough Catering,Catering - St Bede's Catholic Primary School,CATERING AND VENDING SUPPLIES
http://statistics.data.gov.uk/doc/local-authority-district/00AR,London Borough of Havering,30/03/2015,411.67,MAR15L708,Thomas Ridley & Sons Ltd,"Children, Adults & Housing",Learning & Achievement,Borough Catering,Catering - La Salette,CATERING AND VENDING SUPPLIES
http://statistics.data.gov.uk/doc/local-authority-district/00AR,London Borough of Havering,30/03/2015,420.02,MAR15L709,Thomas Ridley & Sons Ltd,"Children, Adults & Housing",Learning & Achievement,Borough Catering,Catering - Scotts,CATERING AND VENDING SUPPLIES
http://statistics.data.gov.uk/doc/local-authority-district/00AR,London Borough of Havering,30/03/2015,430.79,MAR15L710,Thomas Ridley & Sons Ltd,"Children, Adults & Housing",Learning & Achievement,Borough Catering,Catering - St Ursulas,CATERING AND VENDING SUPPLIES
http://statistics.data.gov.uk/doc/local-authority-district/00AR,London Borough of Havering,30/03/2015,516.61,MAR15L711,Thomas Ridley & Sons Ltd,"Children, Adults & Housing",Learning & Achievement,Borough Catering,Catering - St Marys,CATERING AND VENDING SUPPLIES
http://statistics.data.gov.uk/doc/local-authority-district/00AR,London Borough of Havering,30/03/2015,519.44,MAR15L712,Thomas Ridley & Sons Ltd,"Children, Adults & Housing",Learning & Achievement,Borough Catering,Catering - St Peters,CATERING AND VENDING SUPPLIES
http://statistics.data.gov.uk/doc/local-authority-district/00AR,London Borough of Havering,30/03/2015,582.24,MAR15L713,Thomas Ridley & Sons Ltd,"Children, Adults & Housing",Learning & Achievement,Borough Catering,Catering - Elm Park,CATERING AND VENDING SUPPLIES
http://statistics.data.gov.uk/doc/local-authority-district/00AR,London Borough of Havering,30/03/2015,591.29,MAR15L714,Thomas Ridley & Sons Ltd,"Children, Adults & Housing",Learning & Achievement,Borough Catering,Catering - Meals on Wheels,CATERING AND VENDING SUPPLIES
http://statistics.data.gov.uk/doc/local-authority-district/00AR,London Borough of Havering,30/03/2015,594.27,MAR15L715,Thomas Ridley & Sons Ltd,"Children, Adults & Housing",Learning & Achievement,Borough Catering,Catering - Oglethorpe,CATERING AND VENDING SUPPLIES
http://statistics.data.gov.uk/doc/local-authority-district/00AR,London Borough of Havering,30/03/2015,594.52,MAR15L716,Thomas Ridley & Sons Ltd,"Children, Adults & Housing",Learning & Achievement,Borough Catering,Catering - Parsonage Farm,CATERING AND VENDING SUPPLIES
http://statistics.data.gov.uk/doc/local-authority-district/00AR,London Borough of Havering,30/03/2015,595.20,MAR15L717,Thomas Ridley & Sons Ltd,"Children, Adults & Housing",Learning & Achievement,Borough Catering,Catering - Rainham,CATERING AND VENDING SUPPLIES
http://statistics.data.gov.uk/doc/local-authority-district/00AR,London Borough of Havering,30/03/2015,596.44,MAR15L718,Thomas Ridley & Sons Ltd,"Children, Adults & Housing",Learning & Achievement,Borough Catering,Catering - St Patricks,CATERING AND VENDING SUPPLIES
http://statistics.data.gov.uk/doc/local-authority-district/00AR,London Borough of Havering,30/03/2015,617.63,MAR15L719,Thomas Ridley & Sons Ltd,"Children, Adults & Housing",Learning & Achievement,Borough Catering,Catering - Branfil,CATERING AND VENDING SUPPLIES
http://statistics.data.gov.uk/doc/local-authority-district/00AR,London Borough of Havering,30/03/2015,669.06,MAR15L720,Thomas Ridley & Sons Ltd,"Children, Adults & Housing",Learning & Achievement,Borough Catering,Catering - Hylands,CATERING AND VENDING SUPPLIES
http://statistics.data.gov.uk/doc/local-authority-district/00AR,London Borough of Havering,30/03/2015,692.59,MAR15L721,Thomas Ridley & Sons Ltd,"Children, Adults & Housing",Learning & Achievement,Borough Catering,Catering - St Albans,CATERING AND VENDING SUPPLIES
http://statistics.data.gov.uk/doc/local-authority-district/00AR,London Borough of Havering,30/03/2015,693.45,MAR15L722,Thomas Ridley & Sons Ltd,"Children, Adults & Housing",Learning & Achievement,Borough Catering,Catering - Harold Court,CATERING AND VENDING SUPPLIES
http://statistics.data.gov.uk/doc/local-authority-district/00AR,London Borough of Havering,30/03/2015,718.20,MAR15L723,Thomas Ridley & Sons Ltd,"Children, Adults & Housing",Learning & Achievement,Borough Catering,Catering - Brookside,CATERING AND VENDING SUPPLIES
http://statistics.data.gov.uk/doc/local-authority-district/00AR,London Borough of Havering,30/03/2015,735.60,MAR15L724,Thomas Ridley & Sons Ltd,"Children, Adults & Housing",Learning & Achievement,Borough Catering,Catering - Harold Wood,CATERING AND VENDING SUPPLIES
http://statistics.data.gov.uk/doc/local-authority-district/00AR,London Borough of Havering,30/03/2015,755.65,MAR15L725,Thomas Ridley & Sons Ltd,"Children, Adults & Housing",Learning & Achievement,Borough Catering,Catering - Whybridge,CATERING AND VENDING SUPPLIES
http://statistics.data.gov.uk/doc/local-authority-district/00AR,London Borough of Havering,30/03/2015,769.34,MAR15L726,Thomas Ridley & Sons Ltd,"Children, Adults & Housing",Learning & Achievement,Borough Catering,Catering - Hacton,CATERING AND VENDING SUPPLIES
http://statistics.data.gov.uk/doc/local-authority-district/00AR,London Borough of Havering,30/03/2015,775.93,MAR15L727,Thomas Ridley & Sons Ltd,"Children, Adults & Housing",Learning & Achievement,Borough Catering,Catering - Wykeham,CATERING AND VENDING SUPPLIES
http://statistics.data.gov.uk/doc/local-authority-district/00AR,London Borough of Havering,30/03/2015,780.62,MAR15L728,Thomas Ridley & Sons Ltd,"Children, Adults & Housing",Learning & Achievement,Borough Catering,Catering - Gidea Park,CATERING AND VENDING SUPPLIES
http://statistics.data.gov.uk/doc/local-authority-district/00AR,London Borough of Havering,30/03/2015,781.30,MAR15L729,Thomas Ridley & Sons Ltd,"Children, Adults & Housing",Learning & Achievement,Borough Catering,Catering - Nelmes,CATERING AND VENDING SUPPLIES
http://statistics.data.gov.uk/doc/local-authority-district/00AR,London Borough of Havering,30/03/2015,815.17,MAR15L730,Thomas Ridley & Sons Ltd,"Children, Adults & Housing",Learning & Achievement,Borough Catering,Catering - Ardleigh Green,CATERING AND VENDING SUPPLIES
http://statistics.data.gov.uk/doc/local-authority-district/00AR,London Borough of Havering,30/03/2015,816.87,MAR15L731,Thomas Ridley & Sons Ltd,"Children, Adults & Housing",Learning & Achievement,Borough Catering,Catering - Parklands,CATERING AND VENDING SUPPLIES
http://statistics.data.gov.uk/doc/local-authority-district/00AR,London Borough of Havering,30/03/2015,823.59,MAR15L732,Thomas Ridley & Sons Ltd,"Children, Adults & Housing",Learning & Achievement,Borough Catering,Catering - Engayne,CATERING AND VENDING SUPPLIES
http://statistics.data.gov.uk/doc/local-authority-district/00AR,London Borough of Havering,30/03/2015,835.02,MAR15L733,Thomas Ridley & Sons Ltd,"Children, Adults & Housing",Learning & Achievement,Borough Catering,Catering - Clockhouse,CATERING AND VENDING SUPPLIES
http://statistics.data.gov.uk/doc/local-authority-district/00AR,London Borough of Havering,30/03/2015,847.65,MAR15L734,Thomas Ridley & Sons Ltd,"Children, Adults & Housing",Learning & Achievement,Borough Catering,Catering - Scargill,CATERING AND VENDING SUPPLIES
http://statistics.data.gov.uk/doc/local-authority-district/00AR,London Borough of Havering,30/03/2015,860.11,MAR15L735,Thomas Ridley & Sons Ltd,"Children, Adults & Housing",Learning & Achievement,Borough Catering,Catering - Benhurst,CATERING AND VENDING SUPPLIES
http://statistics.data.gov.uk/doc/local-authority-district/00AR,London Borough of Havering,30/03/2015,864.43,MAR15L736,Thomas Ridley & Sons Ltd,"Children, Adults & Housing",Learning & Achievement,Borough Catering,Catering - Newtons,CATERING AND VENDING SUPPLIES
http://statistics.data.gov.uk/doc/local-authority-district/00AR,London Borough of Havering,30/03/2015,868.17,MAR15L737,Thomas Ridley & Sons Ltd,"Children, Adults & Housing",Learning & Achievement,Borough Catering,Catering - Mawney,CATERING AND VENDING SUPPLIES
http://statistics.data.gov.uk/doc/local-authority-district/00AR,London Borough of Havering,30/03/2015,882.05,MAR15L738,Thomas Ridley & Sons Ltd,"Children, Adults & Housing",Learning & Achievement,Borough Catering,Catering - Towers,CATERING AND VENDING SUPPLIES
http://statistics.data.gov.uk/doc/local-authority-district/00AR,London Borough of Havering,30/03/2015,927.65,MAR15L739,Thomas Ridley & Sons Ltd,"Children, Adults & Housing",Learning & Achievement,Borough Catering,Catering - Pyrgo Priory,CATERING AND VENDING SUPPLIES
http://statistics.data.gov.uk/doc/local-authority-district/00AR,London Borough of Havering,30/03/2015,927.69,MAR15L740,Thomas Ridley & Sons Ltd,"Children, Adults & Housing",Learning & Achievement,Borough Catering,Catering - Crownfield,CATERING AND VENDING SUPPLIES
http://statistics.data.gov.uk/doc/local-authority-district/00AR,London Borough of Havering,30/03/2015,954.91,MAR15L741,Thomas Ridley & Sons Ltd,"Children, Adults & Housing",Learning & Achievement,Borough Catering,Catering - Rise Park,CATERING AND VENDING SUPPLIES
http://statistics.data.gov.uk/doc/local-authority-district/00AR,London Borough of Havering,30/03/2015,978.23,MAR15L742,Thomas Ridley & Sons Ltd,"Children, Adults & Housing",Learning & Achievement,Borough Catering,Catering - Broadford,CATERING AND VENDING SUPPLIES
http://statistics.data.gov.uk/doc/local-authority-district/00AR,London Borough of Havering,30/03/2015,1043.64,MAR15L743,Thomas Ridley & Sons Ltd,"Children, Adults & Housing",Learning & Achievement,Borough Catering,Catering - Squirrels Heath,CATERING AND VENDING SUPPLIES
http://statistics.data.gov.uk/doc/local-authority-district/00AR,London Borough of Havering,30/03/2015,1057.25,MAR15L744,Thomas Ridley & Sons Ltd,"Children, Adults & Housing",Learning & Achievement,Borough Catering,Catering - Crowlands,CATERING AND VENDING SUPPLIES
http://statistics.data.gov.uk/doc/local-authority-district/00AR,London Borough of Havering,30/03/2015,1068.83,MAR15L745,Thomas Ridley & Sons Ltd,"Children, Adults & Housing",Learning & Achievement,Borough Catering,Catering - Langtons,CATERING AND VENDING SUPPLIES
http://statistics.data.gov.uk/doc/local-authority-district/00AR,London Borough of Havering,30/03/2015,1074.58,MAR15L746,Thomas Ridley & Sons Ltd,"Children, Adults & Housing",Learning & Achievement,Borough Catering,Catering - Upminster,CATERING AND VENDING SUPPLIES
http://statistics.data.gov.uk/doc/local-authority-district/00AR,London Borough of Havering,30/03/2015,1085.32,MAR15L747,Thomas Ridley & Sons Ltd,"Children, Adults & Housing",Learning & Achievement,Borough Catering,Catering - Mead,CATERING AND VENDING SUPPLIES
http://statistics.data.gov.uk/doc/local-authority-district/00AR,London Borough of Havering,30/03/2015,1109.28,MAR15L748,Thomas Ridley & Sons Ltd,"Children, Adults & Housing",Learning & Achievement,Borough Catering,Catering - Sanders Draper,CATERING AND VENDING SUPPLIES
http://statistics.data.gov.uk/doc/local-authority-district/00AR,London Borough of Havering,30/03/2015,1128.62,MAR15L749,Thomas Ridley & Sons Ltd,"Children, Adults & Housing",Learning & Achievement,Borough Catering,Catering - St Edwards Primary,CATERING AND VENDING SUPPLIES
http://statistics.data.gov.uk/doc/local-authority-district/00AR,London Borough of Havering,30/03/2015,1164.13,MAR15L750,Thomas Ridley & Sons Ltd,"Children, Adults & Housing",Learning & Achievement,Borough Catering,Catering - Hilldene,CATERING AND VENDING SUPPLIES
http://statistics.data.gov.uk/doc/local-authority-district/00AR,London Borough of Havering,30/03/2015,1280.21,MAR15L751,Thomas Ridley & Sons Ltd,"Children, Adults & Housing",Learning & Achievement,Borough Catering,Catering - Bower Park,CATERING AND VENDING SUPPLIES
http://statistics.data.gov.uk/doc/local-authority-district/00AR,London Borough of Havering,30/03/2015,1667.05,MAR15L752,Thomas Ridley & Sons Ltd,"Children, Adults & Housing",Learning & Achievement,Borough Catering,Catering - Redden Court,CATERING AND VENDING SUPPLIES
http://statistics.data.gov.uk/doc/local-authority-district/00AR,London Borough of Havering,30/03/2015,1809.38,MAR15L753,Thomas Ridley & Sons Ltd,"Children, Adults & Housing",Learning & Achievement,Borough Catering,Catering - Royal Liberty,CATERING AND VENDING SUPPLIES
http://statistics.data.gov.uk/doc/local-authority-district/00AR,London Borough of Havering,30/03/2015,1911.96,MAR15L754,Thomas Ridley & Sons Ltd,"Children, Adults & Housing",Learning & Achievement,Borough Catering,Catering - Frances Bardsley,CATERING AND VENDING SUPPLIES
http://statistics.data.gov.uk/doc/local-authority-district/00AR,London Borough of Havering,30/03/2015,2141.06,MAR15L755,Thomas Ridley & Sons Ltd,"Children, Adults & Housing",Learning & Achievement,Borough Catering,Catering - Hall Mead,CATERING AND VENDING SUPPLIES
http://statistics.data.gov.uk/doc/local-authority-district/00AR,London Borough of Havering,30/03/2015,2214.01,MAR15L756,Thomas Ridley & Sons Ltd,"Children, Adults & Housing",Learning & Achievement,Borough Catering,Catering - Town Hall,CATERING AND VENDING SUPPLIES
http://statistics.data.gov.uk/doc/local-authority-district/00AR,London Borough of Havering,30/03/2015,2346.78,MAR15L757,Thomas Ridley & Sons Ltd,"Children, Adults & Housing",Learning & Achievement,Borough Catering,Catering - Brittons,CATERING AND VENDING SUPPLIES
http://statistics.data.gov.uk/doc/local-authority-district/00AR,London Borough of Havering,18/03/2015,47.41,MAR15L758,Thomas Ridley & Sons Ltd,"Children, Adults & Housing",Learning & Achievement,Borough Catering,Catering - Hospitality Plus,CATERING AND VENDING SUPPLIES
http://statistics.data.gov.uk/doc/local-authority-district/00AR,London Borough of Havering,18/03/2015,271.24,MAR15L759,Thomas Ridley & Sons Ltd,"Children, Adults & Housing",Learning & Achievement,Borough Catering,Catering - Specials - Ravensbourne,CATERING AND VENDING SUPPLIES
http://statistics.data.gov.uk/doc/local-authority-district/00AR,London Borough of Havering,18/03/2015,335.92,MAR15L760,Thomas Ridley & Sons Ltd,"Children, Adults & Housing",Learning & Achievement,Borough Catering,Catering - Dame Tipping,CATERING AND VENDING SUPPLIES
http://statistics.data.gov.uk/doc/local-authority-district/00AR,London Borough of Havering,18/03/2015,418.05,MAR15L761,Thomas Ridley & Sons Ltd,"Children, Adults & Housing",Learning & Achievement,Borough Catering,Catering - Suttons,CATERING AND VENDING SUPPLIES
http://statistics.data.gov.uk/doc/local-authority-district/00AR,London Borough of Havering,18/03/2015,479.82,MAR15L762,Thomas Ridley & Sons Ltd,"Children, Adults & Housing",Learning & Achievement,Borough Catering,Catering - Specials - Corbets Tey,CATERING AND VENDING SUPPLIES
http://statistics.data.gov.uk/doc/local-authority-district/00AR,London Borough of Havering,18/03/2015,484.79,MAR15L763,Thomas Ridley & Sons Ltd,"Children, Adults & Housing",Learning & Achievement,Borough Catering,Catering - R J Mitchell,CATERING AND VENDING SUPPLIES
http://statistics.data.gov.uk/doc/local-authority-district/00AR,London Borough of Havering,18/03/2015,504.99,MAR15L764,Thomas Ridley & Sons Ltd,"Children, Adults & Housing",Learning & Achievement,Borough Catering,Catering - Specials - Dycorts,CATERING AND VENDING SUPPLIES
http://statistics.data.gov.uk/doc/local-authority-district/00AR,London Borough of Havering,18/03/2015,530.28,MAR15L765,Thomas Ridley & Sons Ltd,"Children, Adults & Housing",Learning & Achievement,Borough Catering,Catering - Oglethorpe,CATERING AND VENDING SUPPLIES
http://statistics.data.gov.uk/doc/local-authority-district/00AR,London Borough of Havering,18/03/2015,668.68,MAR15L766,Thomas Ridley & Sons Ltd,"Children, Adults & Housing",Learning & Achievement,Borough Catering,Catering - St Marys,CATERING AND VENDING SUPPLIES
http://statistics.data.gov.uk/doc/local-authority-district/00AR,London Borough of Havering,18/03/2015,669.89,MAR15L767,Thomas Ridley & Sons Ltd,"Children, Adults & Housing",Learning & Achievement,Borough Catering,Catering - St Bede's Catholic Primary School,CATERING AND VENDING SUPPLIES
http://statistics.data.gov.uk/doc/local-authority-district/00AR,London Borough of Havering,18/03/2015,741.47,MAR15L768,Thomas Ridley & Sons Ltd,"Children, Adults & Housing",Learning & Achievement,Borough Catering,Catering - Scotts,CATERING AND VENDING SUPPLIES
http://statistics.data.gov.uk/doc/local-authority-district/00AR,London Borough of Havering,18/03/2015,793.86,MAR15L769,Thomas Ridley & Sons Ltd,"Children, Adults & Housing",Learning & Achievement,Borough Catering,Catering - St Ursulas,CATERING AND VENDING SUPPLIES
http://statistics.data.gov.uk/doc/local-authority-district/00AR,London Borough of Havering,18/03/2015,812.43,MAR15L770,Thomas Ridley & Sons Ltd,"Children, Adults & Housing",Learning & Achievement,Borough Catering,Catering - Elm Park,CATERING AND VENDING SUPPLIES
http://statistics.data.gov.uk/doc/local-authority-district/00AR,London Borough of Havering,18/03/2015,833.00,MAR15L771,Thomas Ridley & Sons Ltd,"Children, Adults & Housing",Learning & Achievement,Borough Catering,Catering - Meals on Wheels,CATERING AND VENDING SUPPLIES
http://statistics.data.gov.uk/doc/local-authority-district/00AR,London Borough of Havering,18/03/2015,871.41,MAR15L772,Thomas Ridley & Sons Ltd,"Children, Adults & Housing",Learning & Achievement,Borough Catering,Catering - St Josephs,CATERING AND VENDING SUPPLIES
http://statistics.data.gov.uk/doc/local-authority-district/00AR,London Borough of Havering,18/03/2015,886.19,MAR15L773,Thomas Ridley & Sons Ltd,"Children, Adults & Housing",Learning & Achievement,Borough Catering,Catering - Hylands,CATERING AND VENDING SUPPLIES
http://statistics.data.gov.uk/doc/local-authority-district/00AR,London Borough of Havering,18/03/2015,893.61,MAR15L774,Thomas Ridley & Sons Ltd,"Children, Adults & Housing",Learning & Achievement,Borough Catering,Catering - St Peters,CATERING AND VENDING SUPPLIES
http://statistics.data.gov.uk/doc/local-authority-district/00AR,London Borough of Havering,18/03/2015,974.89,MAR15L775,Thomas Ridley & Sons Ltd,"Children, Adults & Housing",Learning & Achievement,Borough Catering,Catering - Mawney,CATERING AND VENDING SUPPLIES
http://statistics.data.gov.uk/doc/local-authority-district/00AR,London Borough of Havering,18/03/2015,986.43,MAR15L776,Thomas Ridley & Sons Ltd,"Children, Adults & Housing",Learning & Achievement,Borough Catering,Catering - La Salette,CATERING AND VENDING SUPPLIES
http://statistics.data.gov.uk/doc/local-authority-district/00AR,London Borough of Havering,18/03/2015,989.54,MAR15L777,Thomas Ridley & Sons Ltd,"Children, Adults & Housing",Learning & Achievement,Borough Catering,Catering - St Albans,CATERING AND VENDING SUPPLIES
http://statistics.data.gov.uk/doc/local-authority-district/00AR,London Borough of Havering,18/03/2015,993.24,MAR15L778,Thomas Ridley & Sons Ltd,"Children, Adults & Housing",Learning & Achievement,Borough Catering,Catering - Parsonage Farm,CATERING AND VENDING SUPPLIES
http://statistics.data.gov.uk/doc/local-authority-district/00AR,London Borough of Havering,18/03/2015,1004.28,MAR15L779,Thomas Ridley & Sons Ltd,"Children, Adults & Housing",Learning & Achievement,Borough Catering,Catering - Harold Court,CATERING AND VENDING SUPPLIES
http://statistics.data.gov.uk/doc/local-authority-district/00AR,London Borough of Havering,18/03/2015,1031.62,MAR15L780,Thomas Ridley & Sons Ltd,"Children, Adults & Housing",Learning & Achievement,Borough Catering,Catering - Crowlands,CATERING AND VENDING SUPPLIES
http://statistics.data.gov.uk/doc/local-authority-district/00AR,London Borough of Havering,18/03/2015,1037.94,MAR15L781,Thomas Ridley & Sons Ltd,"Children, Adults & Housing",Learning & Achievement,Borough Catering,Catering - St Patricks,CATERING AND VENDING SUPPLIES
http://statistics.data.gov.uk/doc/local-authority-district/00AR,London Borough of Havering,18/03/2015,1129.99,MAR15L782,Thomas Ridley & Sons Ltd,"Children, Adults & Housing",Learning & Achievement,Borough Catering,Catering - Hacton,CATERING AND VENDING SUPPLIES
http://statistics.data.gov.uk/doc/local-authority-district/00AR,London Borough of Havering,18/03/2015,1132.03,MAR15L783,Thomas Ridley & Sons Ltd,"Children, Adults & Housing",Learning & Achievement,Borough Catering,Catering - Rainham,CATERING AND VENDING SUPPLIES
http://statistics.data.gov.uk/doc/local-authority-district/00AR,London Borough of Havering,18/03/2015,1149.39,MAR15L784,Thomas Ridley & Sons Ltd,"Children, Adults & Housing",Learning & Achievement,Borough Catering,Catering - Wykeham,CATERING AND VENDING SUPPLIES
http://statistics.data.gov.uk/doc/local-authority-district/00AR,London Borough of Havering,18/03/2015,1275.86,MAR15L785,Thomas Ridley & Sons Ltd,"Children, Adults & Housing",Learning & Achievement,Borough Catering,Catering - Scargill,CATERING AND VENDING SUPPLIES
http://statistics.data.gov.uk/doc/local-authority-district/00AR,London Borough of Havering,18/03/2015,1302.74,MAR15L786,Thomas Ridley & Sons Ltd,"Children, Adults & Housing",Learning & Achievement,Borough Catering,Catering - Whybridge,CATERING AND VENDING SUPPLIES
http://statistics.data.gov.uk/doc/local-authority-district/00AR,London Borough of Havering,18/03/2015,1304.78,MAR15L787,Thomas Ridley & Sons Ltd,"Children, Adults & Housing",Learning & Achievement,Borough Catering,Catering - Branfil,CATERING AND VENDING SUPPLIES
http://statistics.data.gov.uk/doc/local-authority-district/00AR,London Borough of Havering,18/03/2015,1310.61,MAR15L788,Thomas Ridley & Sons Ltd,"Children, Adults & Housing",Learning & Achievement,Borough Catering,Catering - Brookside,CATERING AND VENDING SUPPLIES
http://statistics.data.gov.uk/doc/local-authority-district/00AR,London Borough of Havering,18/03/2015,1320.81,MAR15L789,Thomas Ridley & Sons Ltd,"Children, Adults & Housing",Learning & Achievement,Borough Catering,Catering - Harold Wood,CATERING AND VENDING SUPPLIES
http://statistics.data.gov.uk/doc/local-authority-district/00AR,London Borough of Havering,18/03/2015,1382.05,MAR15L790,Thomas Ridley & Sons Ltd,"Children, Adults & Housing",Learning & Achievement,Borough Catering,Catering - Newtons,CATERING AND VENDING SUPPLIES
http://statistics.data.gov.uk/doc/local-authority-district/00AR,London Borough of Havering,18/03/2015,1389.09,MAR15L791,Thomas Ridley & Sons Ltd,"Children, Adults & Housing",Learning & Achievement,Borough Catering,Catering - Engayne,CATERING AND VENDING SUPPLIES
http://statistics.data.gov.uk/doc/local-authority-district/00AR,London Borough of Havering,18/03/2015,1425.84,MAR15L792,Thomas Ridley & Sons Ltd,"Children, Adults & Housing",Learning & Achievement,Borough Catering,Catering - Gidea Park,CATERING AND VENDING SUPPLIES
http://statistics.data.gov.uk/doc/local-authority-district/00AR,London Borough of Havering,18/03/2015,1437.55,MAR15L793,Thomas Ridley & Sons Ltd,"Children, Adults & Housing",Learning & Achievement,Borough Catering,Catering - Pyrgo Priory,CATERING AND VENDING SUPPLIES
http://statistics.data.gov.uk/doc/local-authority-district/00AR,London Borough of Havering,18/03/2015,1484.81,MAR15L794,Thomas Ridley & Sons Ltd,"Children, Adults & Housing",Learning & Achievement,Borough Catering,Catering - Towers,CATERING AND VENDING SUPPLIES
http://statistics.data.gov.uk/doc/local-authority-district/00AR,London Borough of Havering,18/03/2015,1528.65,MAR15L795,Thomas Ridley & Sons Ltd,"Children, Adults & Housing",Learning & Achievement,Borough Catering,Catering - Clockhouse,CATERING AND VENDING SUPPLIES
http://statistics.data.gov.uk/doc/local-authority-district/00AR,London Borough of Havering,18/03/2015,1600.95,MAR15L796,Thomas Ridley & Sons Ltd,"Children, Adults & Housing",Learning & Achievement,Borough Catering,Catering - Squirrels Heath,CATERING AND VENDING SUPPLIES
http://statistics.data.gov.uk/doc/local-authority-district/00AR,London Borough of Havering,18/03/2015,1630.19,MAR15L797,Thomas Ridley & Sons Ltd,"Children, Adults & Housing",Learning & Achievement,Borough Catering,Catering - Crownfield,CATERING AND VENDING SUPPLIES
http://statistics.data.gov.uk/doc/local-authority-district/00AR,London Borough of Havering,18/03/2015,1655.08,MAR15L798,Thomas Ridley & Sons Ltd,"Children, Adults & Housing",Learning & Achievement,Borough Catering,Catering - Mead,CATERING AND VENDING SUPPLIES
http://statistics.data.gov.uk/doc/local-authority-district/00AR,London Borough of Havering,18/03/2015,1666.36,MAR15L799,Thomas Ridley & Sons Ltd,"Children, Adults & Housing",Learning & Achievement,Borough Catering,Catering - Nelmes,CATERING AND VENDING SUPPLIES
http://statistics.data.gov.uk/doc/local-authority-district/00AR,London Borough of Havering,18/03/2015,1716.73,MAR15L800,Thomas Ridley & Sons Ltd,"Children, Adults & Housing",Learning & Achievement,Borough Catering,Catering - Rise Park,CATERING AND VENDING SUPPLIES
http://statistics.data.gov.uk/doc/local-authority-district/00AR,London Borough of Havering,18/03/2015,1748.14,MAR15L801,Thomas Ridley & Sons Ltd,"Children, Adults & Housing",Learning & Achievement,Borough Catering,Catering - Broadford,CATERING AND VENDING SUPPLIES
http://statistics.data.gov.uk/doc/local-authority-district/00AR,London Borough of Havering,18/03/2015,1869.52,MAR15L802,Thomas Ridley & Sons Ltd,"Children, Adults & Housing",Learning & Achievement,Borough Catering,Catering - Langtons,CATERING AND VENDING SUPPLIES
http://statistics.data.gov.uk/doc/local-authority-district/00AR,London Borough of Havering,18/03/2015,1877.69,MAR15L803,Thomas Ridley & Sons Ltd,"Children, Adults & Housing",Learning & Achievement,Borough Catering,Catering - Sanders Draper,CATERING AND VENDING SUPPLIES
http://statistics.data.gov.uk/doc/local-authority-district/00AR,London Borough of Havering,18/03/2015,1937.23,MAR15L804,Thomas Ridley & Sons Ltd,"Children, Adults & Housing",Learning & Achievement,Borough Catering,Catering - St Edwards Primary,CATERING AND VENDING SUPPLIES
http://statistics.data.gov.uk/doc/local-authority-district/00AR,London Borough of Havering,18/03/2015,2044.67,MAR15L805,Thomas Ridley & Sons Ltd,"Children, Adults & Housing",Learning & Achievement,Borough Catering,Catering - Hilldene,CATERING AND VENDING SUPPLIES
http://statistics.data.gov.uk/doc/local-authority-district/00AR,London Borough of Havering,18/03/2015,2081.29,MAR15L806,Thomas Ridley & Sons Ltd,"Children, Adults & Housing",Learning & Achievement,Borough Catering,Catering - Parklands,CATERING AND VENDING SUPPLIES
http://statistics.data.gov.uk/doc/local-authority-district/00AR,London Borough of Havering,18/03/2015,2108.56,MAR15L807,Thomas Ridley & Sons Ltd,"Children, Adults & Housing",Learning & Achievement,Borough Catering,Catering - Redden Court,CATERING AND VENDING SUPPLIES
http://statistics.data.gov.uk/doc/local-authority-district/00AR,London Borough of Havering,18/03/2015,2117.14,MAR15L808,Thomas Ridley & Sons Ltd,"Children, Adults & Housing",Learning & Achievement,Borough Catering,Catering - Upminster,CATERING AND VENDING SUPPLIES
http://statistics.data.gov.uk/doc/local-authority-district/00AR,London Borough of Havering,18/03/2015,2287.50,MAR15L809,Thomas Ridley & Sons Ltd,"Children, Adults & Housing",Learning & Achievement,Borough Catering,Catering - Bower Park,CATERING AND VENDING SUPPLIES
http://statistics.data.gov.uk/doc/local-authority-district/00AR,London Borough of Havering,18/03/2015,2485.51,MAR15L810,Thomas Ridley & Sons Ltd,"Children, Adults & Housing",Learning & Achievement,Borough Catering,Catering - Royal Liberty,CATERING AND VENDING SUPPLIES
